Department,Entity, Transaction Date, Expense Type, Expense Area, Supplier Name,Transaction number, Amount, Invoice Description
FCDO,CSC,07/12/2020,Engagement,Programme Costs,NatWest CC,NOM001013,111.31,
FCDO,CSC,07/12/2020,Engagement,Programme Costs,NatWest CC,NOM001013,59,
FCDO,CSC,07/12/2020,Engagement,Programme Costs,NatWest CC,NOM001013,89.61,
FCDO,CSC,07/12/2020,Engagement,Programme Costs,NatWest CC,NOM001013,9.99,
FCDO,CSC,07/12/2020,Engagement,Programme Costs,NatWest CC,NOM001013,153.77,
FCDO,CSC,07/12/2020,Secretariat Service Provision,Admin Costs,NatWest CC,NOM001013,120,
FCDO,CSC,07/12/2020,Engagement,Programme Costs,NatWest CC,NOM001013,181.34,
FCDO,CSC,07/12/2020,Engagement,Programme Costs,NatWest CC,NOM001013,19.67,
FCDO,CSC,07/12/2020,Engagement,Programme Costs,NatWest CC,NOM001013,285.35,
FCDO,CSC,01/12/2020,Scholar Allowances,Award costs,Scholar,PIN050310,720,
FCDO,CSC,01/12/2020,Scholar Stipend,Award costs,Scholar,PIN050310,1116,
FCDO,CSC,01/12/2020,Scholar Stipend,Award costs,Scholar,PIN050310,1116,
FCDO,CSC,01/12/2020,Scholar Stipend,Award costs,Scholar,PIN050311,1435.17,
FCDO,CSC,01/12/2020,Scholar Stipend,Award costs,Scholar,PIN050312,961.31,
FCDO,CSC,01/12/2020,Scholar Stipend,Award costs,Scholar,PIN050313,1110,
FCDO,CSC,01/12/2020,Scholar Stipend,Award costs,Scholar,PIN050314,1995.96,
FCDO,CSC,01/12/2020,Scholar Stipend,Award costs,Scholar,PIN050315,1674,
FCDO,CSC,04/12/2020,Scholar Allowances,Award costs,Kings College London,PIN050316,200,
FCDO,CSC,04/12/2020,Scholar Allowances,Award costs,Kings College London,PIN050316,225,
FCDO,CSC,04/12/2020,Scholar Allowances,Award costs,Kings College London,PIN050316,200,
FCDO,CSC,04/12/2020,Scholar Travel,Award costs,Kings College London,PIN050316,533.43,
FCDO,CSC,04/12/2020,Scholar Allowances,Award costs,Kings College London,PIN050317,200,
FCDO,CSC,04/12/2020,Scholar Allowances,Award costs,Kings College London,PIN050317,225,
FCDO,CSC,04/12/2020,Scholar Allowances,Award costs,Kings College London,PIN050317,200,
FCDO,CSC,04/12/2020,Scholar Travel,Award costs,Kings College London,PIN050317,597.15,
FCDO,CSC,04/12/2020,Scholar Allowances,Award costs,Kings College London,PIN050318,200,
FCDO,CSC,04/12/2020,Scholar Allowances,Award costs,Kings College London,PIN050318,225,
FCDO,CSC,04/12/2020,Scholar Allowances,Award costs,Kings College London,PIN050318,200,
FCDO,CSC,04/12/2020,Scholar Travel,Award costs,Kings College London,PIN050318,505.16,
FCDO,CSC,04/12/2020,Scholar Allowances,Award costs,Queen Margaret University,PIN050319,650,
FCDO,CSC,04/12/2020,Scholar Travel,Award costs,Queen Margaret University,PIN050319,1676.24,
FCDO,CSC,04/12/2020,Tuition Fee,Award costs,University College London Fees,PIN050320,18000,
FCDO,CSC,04/12/2020,Tuition Fee,Award costs,University College London Fees,PIN050322,18000,
FCDO,CSC,04/12/2020,Visa Costs,Award costs,Cranfield University,PIN050323,100.58,
FCDO,CSC,04/12/2020,Scholar Allowances,Award costs,Cranfield University,PIN050323,225,
FCDO,CSC,04/12/2020,Scholar Allowances,Award costs,Cranfield University,PIN050323,200,
FCDO,CSC,04/12/2020,Visa Costs,Award costs,Cranfield University,PIN050324,115.23,
FCDO,CSC,04/12/2020,Scholar Allowances,Award costs,Cranfield University,PIN050324,225,
FCDO,CSC,04/12/2020,Scholar Allowances,Award costs,Cranfield University,PIN050324,200,
FCDO,CSC,04/12/2020,Tuition Fee,Award costs,Liverpool John Moores University,PIN050325,15600,
FCDO,CSC,04/12/2020,Tuition Fee,Award costs,Liverpool John Moores University,PIN050326,15600,
FCDO,CSC,04/12/2020,Tuition Fee,Award costs,University of Strathclyde,PIN050328,19250,
FCDO,CSC,04/12/2020,Tuition Fee,Award costs,University of Strathclyde,PIN050329,20900,
FCDO,CSC,04/12/2020,Tuition Fee,Award costs,University of Strathclyde,PIN050330,20350,
FCDO,CSC,04/12/2020,Tuition Fee,Award costs,University of Strathclyde,PIN050331,15800,
FCDO,CSC,04/12/2020,Tuition Fee,Award costs,University of Strathclyde,PIN050332,20900,
FCDO,CSC,04/12/2020,Tuition Fee,Award costs,University of Strathclyde,PIN050333,20900,
FCDO,CSC,04/12/2020,Tuition Fee,Award costs,University of Strathclyde,PIN050334,22500,
FCDO,CSC,04/12/2020,Tuition Fee,Award costs,University of Leicester,PIN050335,20825,
FCDO,CSC,04/12/2020,Tuition Fee,Award costs,University of Hull,PIN050336,12800,
FCDO,CSC,04/12/2020,Tuition Fee,Award costs,University of Hull,PIN050337,12800,
FCDO,CSC,04/12/2020,Award Support Costs,Award costs,Queen Mary University of London,PIN050338,1000,
FCDO,CSC,04/12/2020,Tuition Fee,Award costs,University of Sheffield,PIN050339,18000,
FCDO,CSC,04/12/2020,Tuition Fee,Award costs,University of Kent,PIN050340,16200,
FCDO,CSC,04/12/2020,Tuition Fee,Award costs,University of Kent,PIN050341,19800,
FCDO,CSC,04/12/2020,Tuition Fee,Award costs,University of Kent,PIN050342,12960,
FCDO,CSC,04/12/2020,Tuition Fee,Award costs,"Lincoln college, Oxford",PIN050343,22500,
FCDO,CSC,04/12/2020,Tuition Fee,Award costs,University of Chester,PIN050344,12450,
FCDO,CSC,04/12/2020,Tuition Fee,Award costs,University of Chester,PIN050345,12450,
FCDO,CSC,04/12/2020,Tuition Fee,Award costs,University of Chester,PIN050346,12450,
FCDO,CSC,04/12/2020,Tuition Fee,Award costs,University of Chester,PIN050347,12450,
FCDO,CSC,04/12/2020,Tuition Fee,Award costs,University of Chester,PIN050348,12450,
FCDO,CSC,04/12/2020,Tuition Fee,Award costs,University of Chester,PIN050349,12450,
FCDO,CSC,04/12/2020,Visa Costs,Award costs,Linacre College Oxford,PIN050350,88.79,
FCDO,CSC,04/12/2020,Scholar Travel,Award costs,Linacre College Oxford,PIN050350,472.91,
FCDO,CSC,04/12/2020,Scholar Allowances,Award costs,Linacre College Oxford,PIN050351,200,
FCDO,CSC,04/12/2020,Scholar Travel,Award costs,Linacre College Oxford,PIN050351,540.12,
FCDO,CSC,04/12/2020,Scholar Travel,Award costs,University of Bath,PIN050352,846.37,
FCDO,CSC,04/12/2020,Scholar Allowances,Award costs,University of Bath,PIN050352,200,
FCDO,CSC,04/12/2020,Scholar Travel,Award costs,University of Bath,PIN050352,43,
FCDO,CSC,04/12/2020,Scholar Travel,Award costs,University of Bath,PIN050353,441.37,
FCDO,CSC,04/12/2020,Scholar Allowances,Award costs,University of Bath,PIN050353,200,
FCDO,CSC,04/12/2020,Scholar Travel,Award costs,University of Bath,PIN050353,27,
FCDO,CSC,04/12/2020,Scholar Travel,Award costs,University of Bath,PIN050354,487.16,
FCDO,CSC,04/12/2020,Scholar Travel,Award costs,University of Bath,PIN050354,30.1,
FCDO,CSC,04/12/2020,Visa Costs,Award costs,University of Bath,PIN050355,115,
FCDO,CSC,04/12/2020,Scholar Travel,Award costs,University of Bath,PIN050355,530.1,
FCDO,CSC,04/12/2020,Scholar Travel,Award costs,University of Bath,PIN050355,27.5,
FCDO,CSC,04/12/2020,Scholar Allowances,Award costs,University of Bath,PIN050355,200,
FCDO,CSC,04/12/2020,Scholar Allowances,Award costs,University of Bath,PIN050355,225,
FCDO,CSC,04/12/2020,Tuition Fee,Award costs,University of Bath,PIN050355,22500,
FCDO,CSC,04/12/2020,Visa Costs,Award costs,University of Bath,PIN050356,101,
FCDO,CSC,04/12/2020,Scholar Travel,Award costs,University of Bath,PIN050356,533.9,
FCDO,CSC,04/12/2020,Scholar Allowances,Award costs,University of Bath,PIN050356,200,
FCDO,CSC,04/12/2020,Scholar Allowances,Award costs,University of Bath,PIN050356,225,
FCDO,CSC,04/12/2020,Tuition Fee,Award costs,University of Bath,PIN050356,19400,
FCDO,CSC,04/12/2020,Visa Costs,Award costs,University of Bath,PIN050357,115,
FCDO,CSC,04/12/2020,Scholar Travel,Award costs,University of Bath,PIN050357,648.9,
FCDO,CSC,04/12/2020,Scholar Travel,Award costs,University of Bath,PIN050357,27.5,
FCDO,CSC,04/12/2020,Scholar Allowances,Award costs,University of Bath,PIN050357,200,
FCDO,CSC,04/12/2020,Scholar Allowances,Award costs,University of Bath,PIN050357,225,
FCDO,CSC,04/12/2020,Tuition Fee,Award costs,University of Bath,PIN050357,22500,
FCDO,CSC,04/12/2020,Scholar Travel,Award costs,University of Bath,PIN050358,387.16,
FCDO,CSC,04/12/2020,Scholar Allowances,Award costs,University of Bath,PIN050358,275,
FCDO,CSC,04/12/2020,Tuition Fee,Award costs,University of Chester,PIN050359,12450,
FCDO,CSC,04/12/2020,Award Support Costs,Award costs,Leeds Beckett University,PIN050360,12955,
FCDO,CSC,04/12/2020,Tuition Fee,Award costs,University of Bristol,PIN050362,18000,
FCDO,CSC,04/12/2020,Tuition Fee,Award costs,University of Bristol,PIN050363,19300,
FCDO,CSC,04/12/2020,Tuition Fee,Award costs,University of Bristol,PIN050364,19300,
FCDO,CSC,04/12/2020,Award Support Costs,Award costs,Loughborough University,PIN050365,4000,
FCDO,CSC,04/12/2020,Award Support Costs,Award costs,Queens University Belfast,PIN050366,1500,
FCDO,CSC,04/12/2020,Tuition Fee,Award costs,Bangor University,PIN050367,16500,
FCDO,CSC,04/12/2020,Tuition Fee,Award costs,Aberystwyth University,PIN050368,15850,
FCDO,CSC,04/12/2020,Tuition Fee,Award costs,Aberystwyth University,PIN050368,12680,
FCDO,CSC,04/12/2020,Tuition Fee,Award costs,Aberystwyth University,PIN050369,12000,
FCDO,CSC,04/12/2020,Tuition Fee,Award costs,Aberystwyth University,PIN050369,11760,
FCDO,CSC,04/12/2020,Tuition Fee,Award costs,University of Greenwich,PIN050370,11200,
FCDO,CSC,04/12/2020,Tuition Fee,Award costs,University of Stirling,PIN050371,16040,
FCDO,CSC,04/12/2020,Award Support Costs,Award costs,University of Reading,PIN050372,850,
FCDO,CSC,04/12/2020,Tuition Fee,Award costs,University of Reading,PIN050373,12856,
FCDO,CSC,04/12/2020,Award Support Costs,Award costs,University of Reading,PIN050374,1000,
FCDO,CSC,04/12/2020,Tuition Fee,Award costs,University of Reading,PIN050374,12856,
FCDO,CSC,04/12/2020,Award Support Costs,Award costs,University of Reading,PIN050375,5000,
FCDO,CSC,04/12/2020,Tuition Fee,Award costs,University of Reading,PIN050376,15464,
FCDO,CSC,04/12/2020,Award Support Costs,Award costs,University of Reading,PIN050377,1000,
FCDO,CSC,04/12/2020,Tuition Fee,Award costs,University of Reading,PIN050378,12856,
FCDO,CSC,04/12/2020,Tuition Fee,Award costs,Staffordshire University,PIN050380,1057.5,
FCDO,CSC,04/12/2020,Tuition Fee,Award costs,Staffordshire University,PIN050381,2115,
FCDO,CSC,04/12/2020,Tuition Fee,Award costs,Staffordshire University,PIN050382,-2115,
FCDO,CSC,04/12/2020,Tuition Fee,Award costs,University of Reading,PIN050384,15772,
FCDO,CSC,04/12/2020,Tuition Fee,Award costs,University of Reading,PIN050385,15772,
FCDO,CSC,04/12/2020,Tuition Fee,Award costs,University of Reading,PIN050386,2500,
FCDO,CSC,04/12/2020,Tuition Fee,Award costs,Linacre College Oxford,PIN050387,18000,
FCDO,CSC,04/12/2020,Tuition Fee,Award costs,Wadham College Oxford,PIN050388,18000,
FCDO,CSC,04/12/2020,Tuition Fee,Award costs,Brasenose College Oxford,PIN050389,22500,
FCDO,CSC,04/12/2020,Tuition Fee,Award costs,Brasenose College Oxford,PIN050390,22500,
FCDO,CSC,04/12/2020,Scholar Travel,Award costs,Diversity Travel,PIN050391,1210.76,
FCDO,CSC,04/12/2020,Scholar Travel,Award costs,Diversity Travel,PIN050391,759.88,
FCDO,CSC,04/12/2020,Scholar Travel,Award costs,Diversity Travel,PIN050391,698.42,
FCDO,CSC,04/12/2020,Scholar Travel,Award costs,Diversity Travel,PIN050391,687.3,
FCDO,CSC,04/12/2020,Scholar Travel,Award costs,Diversity Travel,PIN050391,664.98,
FCDO,CSC,04/12/2020,Scholar Travel,Award costs,Diversity Travel,PIN050391,664.12,
FCDO,CSC,04/12/2020,Scholar Travel,Award costs,Diversity Travel,PIN050391,639.7,
FCDO,CSC,04/12/2020,Scholar Travel,Award costs,Diversity Travel,PIN050391,626.32,
FCDO,CSC,04/12/2020,Scholar Travel,Award costs,Diversity Travel,PIN050391,609.4,
FCDO,CSC,04/12/2020,Scholar Travel,Award costs,Diversity Travel,PIN050391,606.7,
FCDO,CSC,04/12/2020,Scholar Travel,Award costs,Diversity Travel,PIN050391,604.48,
FCDO,CSC,04/12/2020,Scholar Travel,Award costs,Diversity Travel,PIN050391,596.7,
FCDO,CSC,04/12/2020,Scholar Travel,Award costs,Diversity Travel,PIN050391,591.35,
FCDO,CSC,04/12/2020,Scholar Travel,Award costs,Diversity Travel,PIN050391,570.16,
FCDO,CSC,04/12/2020,Scholar Travel,Award costs,Diversity Travel,PIN050391,545.16,
FCDO,CSC,04/12/2020,Scholar Travel,Award costs,Diversity Travel,PIN050391,543.6,
FCDO,CSC,04/12/2020,Scholar Travel,Award costs,Diversity Travel,PIN050391,524.36,
FCDO,CSC,04/12/2020,Scholar Travel,Award costs,Diversity Travel,PIN050391,520.3,
FCDO,CSC,04/12/2020,Scholar Travel,Award costs,Diversity Travel,PIN050391,505.16,
FCDO,CSC,04/12/2020,Scholar Travel,Award costs,Diversity Travel,PIN050391,494.18,
FCDO,CSC,04/12/2020,Scholar Travel,Award costs,Diversity Travel,PIN050391,492.56,
FCDO,CSC,04/12/2020,Scholar Travel,Award costs,Diversity Travel,PIN050391,486.74,
FCDO,CSC,04/12/2020,Scholar Travel,Award costs,Diversity Travel,PIN050391,486.59,
FCDO,CSC,04/12/2020,Scholar Travel,Award costs,Diversity Travel,PIN050391,475.46,
FCDO,CSC,04/12/2020,Scholar Travel,Award costs,Diversity Travel,PIN050391,469.28,
FCDO,CSC,04/12/2020,Scholar Travel,Award costs,Diversity Travel,PIN050391,465.68,
FCDO,CSC,04/12/2020,Scholar Travel,Award costs,Diversity Travel,PIN050391,415.4,
FCDO,CSC,04/12/2020,Scholar Travel,Award costs,Diversity Travel,PIN050391,414,
FCDO,CSC,04/12/2020,Scholar Travel,Award costs,Diversity Travel,PIN050391,408.22,
FCDO,CSC,04/12/2020,Scholar Travel,Award costs,Diversity Travel,PIN050391,363.76,
FCDO,CSC,04/12/2020,Scholar Travel,Award costs,Diversity Travel,PIN050391,359.9,
FCDO,CSC,04/12/2020,Scholar Travel,Award costs,Diversity Travel,PIN050391,333.56,
FCDO,CSC,04/12/2020,Scholar Travel,Award costs,Diversity Travel,PIN050391,203.79,
FCDO,CSC,04/12/2020,Scholar Travel,Award costs,Diversity Travel,PIN050391,64,
FCDO,CSC,04/12/2020,Scholar Travel,Award costs,Diversity Travel,PIN050391,57.4,
FCDO,CSC,04/12/2020,Scholar Travel,Award costs,Diversity Travel,PIN050391,33,
FCDO,CSC,04/12/2020,Scholar Travel,Award costs,Diversity Travel,PIN050391,30.9,
FCDO,CSC,04/12/2020,Scholar Travel,Award costs,Diversity Travel,PIN050391,27.5,
FCDO,CSC,04/12/2020,Scholar Travel,Award costs,Diversity Travel,PIN050391,9,
FCDO,CSC,04/12/2020,Scholar Travel,Award costs,Diversity Travel,PIN050391,5,
FCDO,CSC,04/12/2020,Fieldwork Airfare,Award costs,Diversity Travel,PIN050391,-102.82,
FCDO,CSC,04/12/2020,Scholar Travel,Award costs,Diversity Travel,PIN050391,-165.49,
FCDO,CSC,04/12/2020,Scholar Travel,Award costs,Diversity Travel,PIN050391,-600.4,
FCDO,CSC,04/12/2020,Scholar Travel,Award costs,Diversity Travel,PIN050391,-1024.74,
FCDO,CSC,04/12/2020,Interview Costs,Programme Costs,Way With Words Group,PIN050392,669.77,
FCDO,CSC,04/12/2020,Tuition Fee,Award costs,The University of Nottingham,PIN050393,22815,
FCDO,CSC,04/12/2020,Tuition Fee,Award costs,The University of Nottingham,PIN050394,21645,
FCDO,CSC,04/12/2020,Scholar Allowances,Award costs,Scholar,PIN050397,1178.86,
FCDO,CSC,04/12/2020,Scholar Allowances,Award costs,Scholar,PIN050398,868.89,
FCDO,CSC,04/12/2020,Scholar Allowances,Award costs,Scholar,PIN050398,582.5,
FCDO,CSC,04/12/2020,Scholar Allowances,Award costs,Scholar,PIN050399,884.89,
FCDO,CSC,04/12/2020,Scholar Allowances,Award costs,Scholar,PIN050400,606.16,
FCDO,CSC,04/12/2020,Scholar Allowances,Award costs,Scholar,PIN050401,70.37,
FCDO,CSC,04/12/2020,Scholar Stipend,Award costs,Scholar,PIN050401,1404.13,
FCDO,CSC,04/12/2020,Scholar Stipend,Award costs,Scholar,PIN050402,1116,
FCDO,CSC,04/12/2020,Ill Health Stipend,Award costs,Scholar,PIN050403,1369,
FCDO,CSC,04/12/2020,Scholar Stipend,Award costs,Scholar,PIN050404,2284.71,
FCDO,CSC,04/12/2020,Scholar Allowances,Award costs,Scholar,PIN050405,200,
FCDO,CSC,04/12/2020,Scholar Stipend,Award costs,Scholar,PIN050405,1116,
FCDO,CSC,04/12/2020,Scholar Allowances,Award costs,Scholar,PIN050406,205.01,
FCDO,CSC,04/12/2020,Scholar Allowances,Award costs,Scholar,PIN050406,305.81,
FCDO,CSC,04/12/2020,Scholar Stipend,Award costs,Scholar,PIN050406,953.3,
FCDO,CSC,04/12/2020,Scholar Stipend,Award costs,Scholar,PIN050407,1369,
FCDO,CSC,04/12/2020,Scholar Allowances,Award costs,Scholar,PIN050407,358,
FCDO,CSC,04/12/2020,Scholar Allowances,Award costs,Scholar,PIN050407,240,
FCDO,CSC,04/12/2020,Scholar Stipend,Award costs,Scholar,PIN050408,1116,
FCDO,CSC,11/12/2020,Tuition Fee,Award costs,Queen Margaret University,PIN050416,14500,
FCDO,CSC,11/12/2020,Scholar Allowances,Award costs,University of Southampton,PIN050417,200,
FCDO,CSC,11/12/2020,Scholar Travel,Award costs,University of Southampton,PIN050417,20.5,
FCDO,CSC,11/12/2020,Scholar Travel,Award costs,University of Southampton,PIN050417,510.76,
FCDO,CSC,11/12/2020,Scholar Allowances,Award costs,University of Southampton,PIN050418,200,
FCDO,CSC,11/12/2020,Scholar Travel,Award costs,University of Southampton,PIN050418,16,
FCDO,CSC,11/12/2020,Scholar Travel,Award costs,University of Southampton,PIN050418,510.76,
FCDO,CSC,11/12/2020,Visa Costs,Award costs,University of Leicester,PIN050419,201.46,
FCDO,CSC,11/12/2020,Scholar Travel,Award costs,University of Leicester,PIN050419,1659.04,
FCDO,CSC,11/12/2020,Tuition Fee,Award costs,University of Aberdeen,PIN050420,19000,
FCDO,CSC,11/12/2020,Visa Costs,Award costs,University of Southampton,PIN050421,115.6,
FCDO,CSC,11/12/2020,Scholar Allowances,Award costs,University of Southampton,PIN050421,200,
FCDO,CSC,11/12/2020,Scholar Allowances,Award costs,University of Southampton,PIN050421,225,
FCDO,CSC,11/12/2020,Scholar Travel,Award costs,University of Southampton,PIN050421,852.9,
FCDO,CSC,11/12/2020,Visa Costs,Award costs,University of Southampton,PIN050422,115.6,
FCDO,CSC,11/12/2020,Scholar Allowances,Award costs,University of Southampton,PIN050422,200,
FCDO,CSC,11/12/2020,Scholar Allowances,Award costs,University of Southampton,PIN050422,225,
FCDO,CSC,11/12/2020,Scholar Travel,Award costs,University of Southampton,PIN050422,482.6,
FCDO,CSC,11/12/2020,Tuition Fee,Award costs,University of Kent,PIN050423,16200,
FCDO,CSC,11/12/2020,Visa Costs,Award costs,University of Oxford,PIN050424,194,
FCDO,CSC,11/12/2020,Scholar Allowances,Award costs,University of Oxford,PIN050424,450,
FCDO,CSC,11/12/2020,Scholar Allowances,Award costs,University of Oxford,PIN050424,400,
FCDO,CSC,11/12/2020,Scholar Travel,Award costs,University of Oxford,PIN050424,23,
FCDO,CSC,11/12/2020,Scholar Travel,Award costs,University of Oxford,PIN050424,1342.11,
FCDO,CSC,11/12/2020,Award Support Costs,Award costs,University of Oxford,PIN050425,5000,
FCDO,CSC,11/12/2020,Tuition Fee,Award costs,"St Mary's University, Twickenham, London",PIN050426,12133.33,
FCDO,CSC,11/12/2020,Tuition Fee,Award costs,University of Lincoln,PIN050427,16000,
FCDO,CSC,11/12/2020,Tuition Fee,Award costs,University of Glasgow,PIN050428,22500,
FCDO,CSC,11/12/2020,Tuition Fee,Award costs,London School of Economics,PIN050429,18000,
FCDO,CSC,11/12/2020,Scholar Allowances,Award costs,University of Reading,PIN050430,900,
FCDO,CSC,11/12/2020,Scholar Allowances,Award costs,University of Reading,PIN050430,800,
FCDO,CSC,11/12/2020,Visa Costs,Award costs,University of Reading,PIN050430,320.47,
FCDO,CSC,11/12/2020,Scholar Travel,Award costs,University of Reading,PIN050430,40,
FCDO,CSC,11/12/2020,Scholar Travel,Award costs,University of Reading,PIN050430,2090,
FCDO,CSC,11/12/2020,Scholar Allowances,Award costs,University of Bath,PIN050431,225,
FCDO,CSC,11/12/2020,Scholar Allowances,Award costs,University of Bath,PIN050431,200,
FCDO,CSC,11/12/2020,Visa Costs,Award costs,University of Bath,PIN050431,116,
FCDO,CSC,11/12/2020,Scholar Travel,Award costs,University of Bath,PIN050431,37.5,
FCDO,CSC,11/12/2020,Scholar Travel,Award costs,University of Bath,PIN050431,827.7,
FCDO,CSC,11/12/2020,Tuition Fee,Award costs,University of Bath,PIN050431,22500,
FCDO,CSC,11/12/2020,Award Support Costs,Award costs,University of East Anglia,PIN050432,4000,
FCDO,CSC,11/12/2020,Tuition Fee,Award costs,Liverpool School of Tropical Medicine,PIN050433,14050,
FCDO,CSC,11/12/2020,Award Support Costs,Award costs,University of Reading,PIN050434,800,
FCDO,CSC,11/12/2020,Tuition Fee,Award costs,University of Reading,PIN050435,8237.6,
FCDO,CSC,11/12/2020,Award Support Costs,Award costs,University of Reading,PIN050436,4000,
FCDO,CSC,11/12/2020,Tuition Fee,Award costs,University of Reading,PIN050436,15852,
FCDO,CSC,11/12/2020,Tuition Fee,Award costs,University of Reading,PIN050437,13180,
FCDO,CSC,11/12/2020,Award Support Costs,Award costs,University of Reading,PIN050438,800,
FCDO,CSC,11/12/2020,Tuition Fee,Award costs,University of Reading,PIN050439,17640,
FCDO,CSC,11/12/2020,Tuition Fee,Award costs,University of Reading,PIN050440,19715,
FCDO,CSC,11/12/2020,Tuition Fee,Award costs,University of Reading,PIN050441,13160,
FCDO,CSC,11/12/2020,Tuition Fee,Award costs,University of Reading,PIN050442,16450,
FCDO,CSC,11/12/2020,Tuition Fee,Award costs,University of Reading,PIN050443,19715,
FCDO,CSC,11/12/2020,Tuition Fee,Award costs,University of Reading,PIN050444,16450,
FCDO,CSC,11/12/2020,Tuition Fee,Award costs,University of Reading,PIN050445,13160,
FCDO,CSC,11/12/2020,Tuition Fee,Award costs,Somerville College,PIN050446,18000,
FCDO,CSC,11/12/2020,Tuition Fee,Award costs,University College London Fees,PIN050447,18000,
FCDO,CSC,11/12/2020,Tuition Fee,Award costs,University College London Fees,PIN050448,16088,
FCDO,CSC,11/12/2020,Tuition Fee,Award costs,University College London Fees,PIN050449,18000,
FCDO,CSC,11/12/2020,Tuition Fee,Award costs,University College London Fees,PIN050450,18000,
FCDO,CSC,11/12/2020,Tuition Fee,Award costs,University College London Fees,PIN050451,18000,
FCDO,CSC,11/12/2020,Tuition Fee,Award costs,University College London Fees,PIN050452,16952,
FCDO,CSC,11/12/2020,Tuition Fee,Award costs,University College London Fees,PIN050453,18000,
FCDO,CSC,11/12/2020,Tuition Fee,Award costs,University of London DL,PIN050455,74800,
FCDO,CSC,11/12/2020,Tuition Fee,Award costs,Lond Sch Hygiene & Tropical Me,PIN050456,18000,
FCDO,CSC,11/12/2020,Tuition Fee,Award costs,Lond Sch Hygiene & Tropical Me,PIN050457,13928,
FCDO,CSC,11/12/2020,Tuition Fee,Award costs,Lond Sch Hygiene & Tropical Me,PIN050458,13928,
FCDO,CSC,11/12/2020,Tuition Fee,Award costs,Lond Sch Hygiene & Tropical Me,PIN050459,13928,
FCDO,CSC,11/12/2020,Tuition Fee,Award costs,Lond Sch Hygiene & Tropical Me,PIN050460,18000,
FCDO,CSC,11/12/2020,Tuition Fee,Award costs,Lond Sch Hygiene & Tropical Me,PIN050461,18000,
FCDO,CSC,11/12/2020,Tuition Fee,Award costs,Lond Sch Hygiene & Tropical Me,PIN050462,18000,
FCDO,CSC,11/12/2020,Tuition Fee,Award costs,Lond Sch Hygiene & Tropical Me,PIN050463,13928,
FCDO,CSC,11/12/2020,Tuition Fee,Award costs,Lond Sch Hygiene & Tropical Me,PIN050464,18000,
FCDO,CSC,11/12/2020,Tuition Fee,Award costs,Lond Sch Hygiene & Tropical Me,PIN050465,13928,
FCDO,CSC,11/12/2020,Award Support Costs,Award costs,University of Oxford,PIN050466,5000,
FCDO,CSC,11/12/2020,Tuition Fee,Award costs,University of Exeter,PIN050467,13520,
FCDO,CSC,11/12/2020,Tuition Fee,Award costs,University of Exeter,PIN050468,15200,
FCDO,CSC,11/12/2020,Tuition Fee,Award costs,University of Exeter,PIN050469,18000,
FCDO,CSC,11/12/2020,Tuition Fee,Award costs,University of Exeter,PIN050470,18500,
FCDO,CSC,11/12/2020,Tuition Fee,Award costs,Oxford Brookes University,PIN050471,14700,
FCDO,CSC,11/12/2020,Tuition Fee,Award costs,Oxford Brookes University,PIN050472,15100,
FCDO,CSC,11/12/2020,Tuition Fee,Award costs,Oxford Brookes University,PIN050473,14500,
FCDO,CSC,11/12/2020,Scholar Travel,Award costs,Conciliation Resources,PIN050474,-72.98,
FCDO,CSC,11/12/2020,Award Support Costs,Award costs,Conciliation Resources,PIN050474,2000,
FCDO,CSC,11/12/2020,Award Support Costs,Award costs,Conciliation Resources,PIN050474,800,
FCDO,CSC,11/12/2020,Scholar Travel,Award costs,Conciliation Resources,PIN050474,-72.98,
FCDO,CSC,11/12/2020,Award Support Costs,Award costs,Conciliation Resources,PIN050474,2000,
FCDO,CSC,11/12/2020,Award Support Costs,Award costs,Conciliation Resources,PIN050474,800,
FCDO,CSC,11/12/2020,Scholar Travel,Award costs,Conciliation Resources,PIN050474,-72.98,
FCDO,CSC,11/12/2020,Award Support Costs,Award costs,Conciliation Resources,PIN050474,2000,
FCDO,CSC,11/12/2020,Award Support Costs,Award costs,Conciliation Resources,PIN050474,800,
FCDO,CSC,11/12/2020,Scholar Travel,Award costs,Conciliation Resources,PIN050474,-72.98,
FCDO,CSC,11/12/2020,Award Support Costs,Award costs,Conciliation Resources,PIN050474,2000,
FCDO,CSC,11/12/2020,Award Support Costs,Award costs,Conciliation Resources,PIN050474,800,
FCDO,CSC,11/12/2020,Scholar Travel,Award costs,Scholar,PIN050475,784.79,
FCDO,CSC,11/12/2020,Tuition Fee,Award costs,Queen Margaret University,PIN050476,14500,
FCDO,CSC,11/12/2020,Award Support Costs,Award costs,Liverpool School of Tropical Medicine,PIN050477,5000,
FCDO,CSC,11/12/2020,Tuition Fee,Award costs,Liverpool School of Tropical Medicine,PIN050477,14000,
FCDO,CSC,11/12/2020,Tuition Fee,Award costs,Liverpool Hope University,PIN050478,11400,
FCDO,CSC,11/12/2020,Scholar Allowances,Award costs,Kings College London,PIN050479,200,
FCDO,CSC,11/12/2020,Scholar Allowances,Award costs,Kings College London,PIN050479,225,
FCDO,CSC,11/12/2020,Scholar Allowances,Award costs,Kings College London,PIN050479,200,
FCDO,CSC,11/12/2020,Scholar Travel,Award costs,Kings College London,PIN050479,528.02,
FCDO,CSC,11/12/2020,Scholar Travel,Award costs,University of Newcastle upon Tyne,PIN050480,2438.94,
FCDO,CSC,11/12/2020,Scholar Allowances,Award costs,University of Newcastle upon Tyne,PIN050480,1575,
FCDO,CSC,11/12/2020,Scholar Allowances,Award costs,University of Newcastle upon Tyne,PIN050480,1400,
FCDO,CSC,11/12/2020,Scholar Travel,Award costs,University of Newcastle upon Tyne,PIN050480,3724.28,
FCDO,CSC,11/12/2020,Tuition Fee,Award costs,Bangor University,PIN050481,17500,
FCDO,CSC,11/12/2020,Tuition Fee,Award costs,University of Reading,PIN050482,12856,
FCDO,CSC,11/12/2020,Award Support Costs,Award costs,University of Reading,PIN050484,1000,
FCDO,CSC,16/12/2020,Scholar Stipend,Award costs,Scholar,PIN050485,4107,
FCDO,CSC,16/12/2020,Scholar Stipend,Award costs,Scholar,PIN050486,2232,
FCDO,CSC,16/12/2020,Scholar Stipend,Award costs,Scholar,PIN050487,3348,
FCDO,CSC,16/12/2020,Scholar Stipend,Award costs,Scholar,PIN050488,2965.3,
FCDO,CSC,16/12/2020,Scholar Stipend,Award costs,Scholar,PIN050489,3348,
FCDO,CSC,16/12/2020,Scholar Stipend,Award costs,Scholar,PIN050490,3348,
FCDO,CSC,16/12/2020,Scholar Stipend,Award costs,Scholar,PIN050491,3348,
FCDO,CSC,16/12/2020,Scholar Stipend,Award costs,Scholar,PIN050492,3348,
FCDO,CSC,16/12/2020,Scholar Stipend,Award costs,Scholar,PIN050493,3001.97,
FCDO,CSC,16/12/2020,Scholar Stipend,Award costs,Scholar,PIN050494,3348,
FCDO,CSC,16/12/2020,Scholar Stipend,Award costs,Scholar,PIN050495,4107,
FCDO,CSC,16/12/2020,Scholar Stipend,Award costs,Scholar,PIN050496,1116,
FCDO,CSC,16/12/2020,Scholar Stipend,Award costs,Scholar,PIN050497,1116,
FCDO,CSC,16/12/2020,Scholar Stipend,Award costs,Scholar,PIN050498,3348,
FCDO,CSC,16/12/2020,Scholar Stipend,Award costs,Scholar,PIN050499,1099.96,
FCDO,CSC,16/12/2020,Scholar Stipend,Award costs,Scholar,PIN050500,2053.5,
FCDO,CSC,16/12/2020,Scholar Stipend,Award costs,Scholar,PIN050501,2053.5,
FCDO,CSC,16/12/2020,Scholar Stipend,Award costs,Scholar,PIN050502,4107,
FCDO,CSC,16/12/2020,Scholar Stipend,Award costs,Scholar,PIN050503,3348,
FCDO,CSC,16/12/2020,Scholar Stipend,Award costs,Scholar,PIN050504,4107,
FCDO,CSC,16/12/2020,Scholar Stipend,Award costs,Scholar,PIN050505,3348,
FCDO,CSC,16/12/2020,Scholar Stipend,Award costs,Scholar,PIN050506,4107,
FCDO,CSC,16/12/2020,Scholar Stipend,Award costs,Scholar,PIN050507,3348,
FCDO,CSC,16/12/2020,Scholar Stipend,Award costs,Scholar,PIN050508,3348,
FCDO,CSC,16/12/2020,Scholar Stipend,Award costs,Scholar,PIN050509,3348,
FCDO,CSC,16/12/2020,Scholar Stipend,Award costs,Scholar,PIN050510,3348,
FCDO,CSC,16/12/2020,Scholar Stipend,Award costs,Scholar,PIN050511,3348,
FCDO,CSC,16/12/2020,Scholar Stipend,Award costs,Scholar,PIN050512,4107,
FCDO,CSC,16/12/2020,Scholar Stipend,Award costs,Scholar,PIN050513,3348,
FCDO,CSC,16/12/2020,Scholar Stipend,Award costs,Scholar,PIN050514,4107,
FCDO,CSC,16/12/2020,Scholar Stipend,Award costs,Scholar,PIN050515,3348,
FCDO,CSC,16/12/2020,Scholar Stipend,Award costs,Scholar,PIN050516,3348,
FCDO,CSC,16/12/2020,Scholar Stipend,Award costs,Scholar,PIN050517,3348,
FCDO,CSC,16/12/2020,Scholar Stipend,Award costs,Scholar,PIN050518,4107,
FCDO,CSC,16/12/2020,Scholar Stipend,Award costs,Scholar,PIN050519,4107,
FCDO,CSC,16/12/2020,Scholar Stipend,Award costs,Scholar,PIN050520,3348,
FCDO,CSC,16/12/2020,Scholar Stipend,Award costs,Scholar,PIN050521,3348,
FCDO,CSC,16/12/2020,Scholar Stipend,Award costs,Scholar,PIN050522,3348,
FCDO,CSC,16/12/2020,Scholar Stipend,Award costs,Scholar,PIN050523,1116,
FCDO,CSC,16/12/2020,Scholar Stipend,Award costs,Scholar,PIN050524,1116,
FCDO,CSC,16/12/2020,Scholar Stipend,Award costs,Scholar,PIN050525,1116,
FCDO,CSC,16/12/2020,Scholar Stipend,Award costs,Scholar,PIN050526,3348,
FCDO,CSC,16/12/2020,Scholar Stipend,Award costs,Scholar,PIN050527,3348,
FCDO,CSC,16/12/2020,Scholar Stipend,Award costs,Scholar,PIN050528,4107,
FCDO,CSC,16/12/2020,Scholar Stipend,Award costs,Scholar,PIN050529,1116,
FCDO,CSC,16/12/2020,Scholar Stipend,Award costs,Scholar,PIN050530,3348,
FCDO,CSC,16/12/2020,Scholar Stipend,Award costs,Scholar,PIN050531,3348,
FCDO,CSC,16/12/2020,Scholar Stipend,Award costs,Scholar,PIN050532,1674,
FCDO,CSC,16/12/2020,Scholar Stipend,Award costs,Scholar,PIN050533,2818.64,
FCDO,CSC,16/12/2020,Scholar Stipend,Award costs,Scholar,PIN050534,3348,
FCDO,CSC,16/12/2020,Scholar Stipend,Award costs,Scholar,PIN050535,1674,
FCDO,CSC,16/12/2020,Scholar Stipend,Award costs,Scholar,PIN050536,3348,
FCDO,CSC,16/12/2020,Scholar Stipend,Award costs,Scholar,PIN050537,3348,
FCDO,CSC,16/12/2020,Scholar Stipend,Award costs,Scholar,PIN050538,3348,
FCDO,CSC,16/12/2020,Scholar Stipend,Award costs,Scholar,PIN050539,3348,
FCDO,CSC,16/12/2020,Scholar Stipend,Award costs,Scholar,PIN050540,4107,
FCDO,CSC,16/12/2020,Scholar Stipend,Award costs,Scholar,PIN050541,3348,
FCDO,CSC,16/12/2020,Scholar Stipend,Award costs,Scholar,PIN050542,3348,
FCDO,CSC,16/12/2020,Scholar Stipend,Award costs,Scholar,PIN050543,4107,
FCDO,CSC,16/12/2020,Scholar Stipend,Award costs,Scholar,PIN050544,1116,
FCDO,CSC,16/12/2020,Scholar Stipend,Award costs,Scholar,PIN050545,4107,
FCDO,CSC,16/12/2020,Scholar Stipend,Award costs,Scholar,PIN050546,4107,
FCDO,CSC,16/12/2020,Scholar Stipend,Award costs,Scholar,PIN050547,1116,
FCDO,CSC,16/12/2020,Scholar Stipend,Award costs,Scholar,PIN050548,3348,
FCDO,CSC,16/12/2020,Scholar Stipend,Award costs,Scholar,PIN050549,3348,
FCDO,CSC,16/12/2020,Scholar Stipend,Award costs,Scholar,PIN050550,3348,
FCDO,CSC,16/12/2020,Scholar Stipend,Award costs,Scholar,PIN050551,3691.29,
FCDO,CSC,16/12/2020,Scholar Stipend,Award costs,Scholar,PIN050552,3348,
FCDO,CSC,16/12/2020,Scholar Stipend,Award costs,Scholar,PIN050553,2232,
FCDO,CSC,16/12/2020,Scholar Stipend,Award costs,Scholar,PIN050554,3348,
FCDO,CSC,16/12/2020,Scholar Stipend,Award costs,Scholar,PIN050555,3348,
FCDO,CSC,16/12/2020,Scholar Stipend,Award costs,Scholar,PIN050556,3348,
FCDO,CSC,16/12/2020,Scholar Stipend,Award costs,Scholar,PIN050558,3348,
FCDO,CSC,16/12/2020,Scholar Stipend,Award costs,Scholar,PIN050559,1674,
FCDO,CSC,16/12/2020,Scholar Stipend,Award costs,Scholar,PIN050560,3348,
FCDO,CSC,16/12/2020,Scholar Stipend,Award costs,Scholar,PIN050561,3348,
FCDO,CSC,16/12/2020,Scholar Stipend,Award costs,Scholar,PIN050562,1443.42,
FCDO,CSC,16/12/2020,Scholar Stipend,Award costs,Scholar,PIN050563,3348,
FCDO,CSC,16/12/2020,Scholar Stipend,Award costs,Scholar,PIN050564,3348,
FCDO,CSC,16/12/2020,Scholar Stipend,Award costs,Scholar,PIN050565,3348,
FCDO,CSC,16/12/2020,Scholar Stipend,Award costs,Scholar,PIN050566,4107,
FCDO,CSC,16/12/2020,Scholar Stipend,Programme Costs,Scholar,PIN050567,3348,
FCDO,CSC,16/12/2020,Scholar Stipend,Award costs,Scholar,PIN050568,3348,
FCDO,CSC,16/12/2020,Scholar Stipend,Award costs,Scholar,PIN050569,1116,
FCDO,CSC,16/12/2020,Scholar Stipend,Award costs,Scholar,PIN050570,4107,
FCDO,CSC,16/12/2020,Scholar Stipend,Award costs,Scholar,PIN050571,3348,
FCDO,CSC,16/12/2020,Scholar Stipend,Award costs,Scholar,PIN050573,1908.73,
FCDO,CSC,16/12/2020,Scholar Stipend,Award costs,Scholar,PIN050574,1369,
FCDO,CSC,16/12/2020,Scholar Stipend,Award costs,Scholar,PIN050575,3348,
FCDO,CSC,16/12/2020,Scholar Stipend,Award costs,Scholar,PIN050576,3348,
FCDO,CSC,16/12/2020,Scholar Stipend,Award costs,Scholar,PIN050577,3348,
FCDO,CSC,16/12/2020,Scholar Stipend,Award costs,Scholar,PIN050578,3348,
FCDO,CSC,16/12/2020,Scholar Stipend,Award costs,Scholar,PIN050579,4107,
FCDO,CSC,16/12/2020,Scholar Stipend,Award costs,Scholar,PIN050580,549.98,
FCDO,CSC,16/12/2020,Scholar Stipend,Award costs,Scholar,PIN050581,4107,
FCDO,CSC,16/12/2020,Scholar Stipend,Award costs,Scholar,PIN050582,3348,
FCDO,CSC,16/12/2020,Scholar Stipend,Award costs,Scholar,PIN050583,3348,
FCDO,CSC,16/12/2020,Scholar Stipend,Award costs,Scholar,PIN050584,3348,
FCDO,CSC,16/12/2020,Scholar Stipend,Award costs,Scholar,PIN050585,3348,
FCDO,CSC,16/12/2020,Scholar Stipend,Award costs,Scholar,PIN050586,3348,
FCDO,CSC,16/12/2020,Scholar Stipend,Award costs,Scholar,PIN050587,4107,
FCDO,CSC,16/12/2020,Scholar Stipend,Award costs,Scholar,PIN050588,4107,
FCDO,CSC,16/12/2020,Scholar Stipend,Award costs,Scholar,PIN050589,4107,
FCDO,CSC,16/12/2020,Scholar Stipend,Award costs,Scholar,PIN050590,3348,
FCDO,CSC,16/12/2020,Scholar Stipend,Award costs,Scholar,PIN050591,4107,
FCDO,CSC,16/12/2020,Scholar Stipend,Award costs,Scholar,PIN050592,3348,
FCDO,CSC,16/12/2020,Scholar Stipend,Award costs,Scholar,PIN050593,3348,
FCDO,CSC,16/12/2020,Scholar Stipend,Award costs,Scholar,PIN050594,2232,
FCDO,CSC,16/12/2020,Scholar Stipend,Award costs,Scholar,PIN050595,3348,
FCDO,CSC,16/12/2020,Scholar Stipend,Award costs,Scholar,PIN050596,3854,
FCDO,CSC,16/12/2020,Scholar Stipend,Award costs,Scholar,PIN050597,3348,
FCDO,CSC,16/12/2020,Scholar Stipend,Award costs,Scholar,PIN050598,3348,
FCDO,CSC,16/12/2020,Scholar Stipend,Award costs,Scholar,PIN050599,3348,
FCDO,CSC,16/12/2020,Scholar Stipend,Award costs,Scholar,PIN050600,1116,
FCDO,CSC,16/12/2020,Scholar Stipend,Award costs,Scholar,PIN050601,4107,
FCDO,CSC,16/12/2020,Scholar Stipend,Award costs,Scholar,PIN050602,4107,
FCDO,CSC,16/12/2020,Scholar Stipend,Award costs,Scholar,PIN050604,2708.65,
FCDO,CSC,16/12/2020,Scholar Stipend,Award costs,Scholar,PIN050605,3348,
FCDO,CSC,16/12/2020,Scholar Stipend,Award costs,Scholar,PIN050606,3348,
FCDO,CSC,16/12/2020,Scholar Stipend,Award costs,Scholar,PIN050607,3348,
FCDO,CSC,16/12/2020,Scholar Stipend,Award costs,Scholar,PIN050608,3348,
FCDO,CSC,16/12/2020,Scholar Stipend,Award costs,Scholar,PIN050609,3348,
FCDO,CSC,16/12/2020,Scholar Stipend,Award costs,Scholar,PIN050610,3348,
FCDO,CSC,16/12/2020,Scholar Stipend,Award costs,Scholar,PIN050611,3348,
FCDO,CSC,16/12/2020,Scholar Stipend,Award costs,Scholar,PIN050612,3348,
FCDO,CSC,16/12/2020,Scholar Stipend,Award costs,Scholar,PIN050613,3348,
FCDO,CSC,16/12/2020,Scholar Stipend,Award costs,Scholar,PIN050614,4107,
FCDO,CSC,16/12/2020,Scholar Stipend,Award costs,Scholar,PIN050615,2165.58,
FCDO,CSC,16/12/2020,Scholar Stipend,Award costs,Scholar,PIN050616,1116,
FCDO,CSC,16/12/2020,Scholar Stipend,Award costs,Scholar,PIN050617,4107,
FCDO,CSC,16/12/2020,Scholar Stipend,Award costs,Scholar,PIN050618,3348,
FCDO,CSC,16/12/2020,Scholar Stipend,Award costs,Scholar,PIN050619,3348,
FCDO,CSC,16/12/2020,Scholar Stipend,Award costs,Scholar,PIN050620,3348,
FCDO,CSC,16/12/2020,Scholar Stipend,Award costs,Scholar,PIN050621,4107,
FCDO,CSC,16/12/2020,Scholar Stipend,Award costs,Scholar,PIN050622,3348,
FCDO,CSC,16/12/2020,Scholar Stipend,Award costs,Scholar,PIN050623,3348,
FCDO,CSC,16/12/2020,Scholar Stipend,Award costs,Scholar,PIN050624,1116,
FCDO,CSC,16/12/2020,Scholar Stipend,Award costs,Scholar,PIN050625,2165.58,
FCDO,CSC,16/12/2020,Scholar Stipend,Award costs,Scholar,PIN050626,3348,
FCDO,CSC,16/12/2020,Scholar Stipend,Award costs,Scholar,PIN050627,4107,
FCDO,CSC,16/12/2020,Scholar Stipend,Award costs,Scholar,PIN050628,3348,
FCDO,CSC,16/12/2020,Scholar Stipend,Award costs,Scholar,PIN050629,2165.58,
FCDO,CSC,16/12/2020,Scholar Stipend,Award costs,Scholar,PIN050630,4107,
FCDO,CSC,16/12/2020,Scholar Stipend,Award costs,Scholar,PIN050631,3348,
FCDO,CSC,16/12/2020,Scholar Stipend,Award costs,Scholar,PIN050632,1443.42,
FCDO,CSC,16/12/2020,Scholar Stipend,Award costs,Scholar,PIN050633,3348,
FCDO,CSC,16/12/2020,Scholar Stipend,Award costs,Scholar,PIN050634,3348,
FCDO,CSC,16/12/2020,Scholar Stipend,Award costs,Scholar,PIN050635,3348,
FCDO,CSC,16/12/2020,Scholar Stipend,Award costs,Scholar,PIN050636,1674,
FCDO,CSC,16/12/2020,Scholar Stipend,Award costs,Scholar,PIN050637,3348,
FCDO,CSC,16/12/2020,Scholar Stipend,Award costs,Scholar,PIN050638,1116,
FCDO,CSC,16/12/2020,Scholar Stipend,Award costs,Scholar,PIN050639,3348,
FCDO,CSC,16/12/2020,Scholar Stipend,Award costs,Scholar,PIN050640,3348,
FCDO,CSC,16/12/2020,Scholar Stipend,Award costs,Scholar,PIN050641,1443.42,
FCDO,CSC,16/12/2020,Scholar Stipend,Award costs,Scholar,PIN050642,3348,
FCDO,CSC,16/12/2020,Scholar Stipend,Award costs,Scholar,PIN050643,4107,
FCDO,CSC,16/12/2020,Scholar Stipend,Award costs,Scholar,PIN050644,3348,
FCDO,CSC,16/12/2020,Scholar Stipend,Award costs,Scholar,PIN050645,3348,
FCDO,CSC,16/12/2020,Scholar Stipend,Award costs,Scholar,PIN050646,3348,
FCDO,CSC,16/12/2020,Scholar Stipend,Award costs,Scholar,PIN050647,3348,
FCDO,CSC,16/12/2020,Scholar Stipend,Award costs,Scholar,PIN050648,1116,
FCDO,CSC,16/12/2020,Scholar Stipend,Award costs,Scholar,PIN050649,1116,
FCDO,CSC,16/12/2020,Scholar Stipend,Award costs,Scholar,PIN050650,1116,
FCDO,CSC,16/12/2020,Scholar Stipend,Award costs,Scholar,PIN050651,4107,
FCDO,CSC,16/12/2020,Scholar Stipend,Award costs,Scholar,PIN050652,1443.42,
FCDO,CSC,16/12/2020,Scholar Stipend,Award costs,Scholar,PIN050653,3348,
FCDO,CSC,16/12/2020,Scholar Stipend,Award costs,Scholar,PIN050654,3348,
FCDO,CSC,16/12/2020,Scholar Stipend,Award costs,Scholar,PIN050655,3348,
FCDO,CSC,16/12/2020,Scholar Stipend,Award costs,Scholar,PIN050656,4107,
FCDO,CSC,16/12/2020,Scholar Stipend,Award costs,Scholar,PIN050657,3348,
FCDO,CSC,16/12/2020,Scholar Stipend,Award costs,Scholar,PIN050658,3348,
FCDO,CSC,16/12/2020,Scholar Stipend,Award costs,Scholar,PIN050659,2232,
FCDO,CSC,16/12/2020,Scholar Stipend,Award costs,Scholar,PIN050660,1574.32,
FCDO,CSC,16/12/2020,Scholar Stipend,Award costs,Scholar,PIN050661,3348,
FCDO,CSC,16/12/2020,Scholar Stipend,Award costs,Scholar,PIN050662,3348,
FCDO,CSC,16/12/2020,Scholar Stipend,Award costs,Scholar,PIN050663,3348,
FCDO,CSC,16/12/2020,Scholar Stipend,Award costs,Scholar,PIN050664,4107,
FCDO,CSC,16/12/2020,Scholar Stipend,Award costs,Scholar,PIN050665,3348,
FCDO,CSC,16/12/2020,Scholar Stipend,Award costs,Scholar,PIN050666,4107,
FCDO,CSC,16/12/2020,Scholar Stipend,Award costs,Scholar,PIN050667,3348,
FCDO,CSC,16/12/2020,Scholar Stipend,Award costs,Scholar,PIN050668,3348,
FCDO,CSC,16/12/2020,Scholar Stipend,Award costs,Scholar,PIN050669,3348,
FCDO,CSC,16/12/2020,Scholar Stipend,Award costs,Scholar,PIN050670,1016.32,
FCDO,CSC,16/12/2020,Scholar Stipend,Award costs,Scholar,PIN050671,3348,
FCDO,CSC,16/12/2020,Scholar Stipend,Award costs,Scholar,PIN050672,4107,
FCDO,CSC,16/12/2020,Scholar Stipend,Award costs,Scholar,PIN050673,1116,
FCDO,CSC,16/12/2020,Scholar Stipend,Award costs,Scholar,PIN050674,3348,
FCDO,CSC,16/12/2020,Scholar Stipend,Award costs,Scholar,PIN050675,3348,
FCDO,CSC,16/12/2020,Scholar Stipend,Award costs,Scholar,PIN050676,3348,
FCDO,CSC,16/12/2020,Scholar Stipend,Award costs,Scholar,PIN050677,4107,
FCDO,CSC,16/12/2020,Scholar Stipend,Award costs,Scholar,PIN050678,4107,
FCDO,CSC,16/12/2020,Scholar Stipend,Award costs,Scholar,PIN050679,4107,
FCDO,CSC,16/12/2020,Scholar Stipend,Award costs,Scholar,PIN050680,3348,
FCDO,CSC,16/12/2020,Scholar Stipend,Award costs,Scholar,PIN050681,3348,
FCDO,CSC,16/12/2020,Scholar Stipend,Award costs,Scholar,PIN050682,3348,
FCDO,CSC,16/12/2020,Scholar Stipend,Award costs,Scholar,PIN050683,3348,
FCDO,CSC,16/12/2020,Scholar Stipend,Award costs,Scholar,PIN050684,3348,
FCDO,CSC,16/12/2020,Scholar Stipend,Award costs,Scholar,PIN050685,4107,
FCDO,CSC,16/12/2020,Scholar Stipend,Award costs,Scholar,PIN050686,3348,
FCDO,CSC,16/12/2020,Scholar Stipend,Award costs,Scholar,PIN050687,3348,
FCDO,CSC,16/12/2020,Scholar Stipend,Award costs,Scholar,PIN050688,3348,
FCDO,CSC,16/12/2020,Scholar Stipend,Award costs,Scholar,PIN050689,3348,
FCDO,CSC,16/12/2020,Scholar Stipend,Award costs,Scholar,PIN050690,3348,
FCDO,CSC,16/12/2020,Scholar Stipend,Award costs,Scholar,PIN050691,1116,
FCDO,CSC,16/12/2020,Scholar Stipend,Award costs,Scholar,PIN050692,3348,
FCDO,CSC,16/12/2020,Scholar Stipend,Award costs,Scholar,PIN050693,3348,
FCDO,CSC,16/12/2020,Scholar Stipend,Award costs,Scholar,PIN050694,3348,
FCDO,CSC,16/12/2020,Scholar Stipend,Award costs,Scholar,PIN050695,2886.84,
FCDO,CSC,16/12/2020,Scholar Stipend,Award costs,Scholar,PIN050696,1674,
FCDO,CSC,16/12/2020,Scholar Stipend,Award costs,Scholar,PIN050697,3348,
FCDO,CSC,16/12/2020,Scholar Stipend,Award costs,Scholar,PIN050698,3348,
FCDO,CSC,16/12/2020,Scholar Stipend,Award costs,Scholar,PIN050699,3348,
FCDO,CSC,16/12/2020,Scholar Stipend,Award costs,Scholar,PIN050700,3348,
FCDO,CSC,16/12/2020,Scholar Stipend,Award costs,Scholar,PIN050701,3348,
FCDO,CSC,16/12/2020,Scholar Stipend,Award costs,Scholar,PIN050702,1443.42,
FCDO,CSC,16/12/2020,Scholar Stipend,Award costs,Scholar,PIN050703,3348,
FCDO,CSC,16/12/2020,Scholar Stipend,Award costs,Scholar,PIN050704,1116,
FCDO,CSC,16/12/2020,Scholar Stipend,Award costs,Scholar,PIN050705,4107,
FCDO,CSC,16/12/2020,Scholar Stipend,Award costs,Scholar,PIN050706,1116,
FCDO,CSC,16/12/2020,Scholar Stipend,Award costs,Scholar,PIN050707,3348,
FCDO,CSC,16/12/2020,Scholar Stipend,Award costs,Scholar,PIN050708,1445.99,
FCDO,CSC,16/12/2020,Scholar Stipend,Award costs,Scholar,PIN050709,3348,
FCDO,CSC,16/12/2020,Scholar Stipend,Award costs,Scholar,PIN050710,2053.5,
FCDO,CSC,16/12/2020,Scholar Stipend,Award costs,Scholar,PIN050711,3348,
FCDO,CSC,16/12/2020,Scholar Stipend,Award costs,Scholar,PIN050712,3348,
FCDO,CSC,16/12/2020,Scholar Stipend,Award costs,Scholar,PIN050713,1116,
FCDO,CSC,16/12/2020,Scholar Stipend,Award costs,Scholar,PIN050714,3348,
FCDO,CSC,16/12/2020,Scholar Stipend,Award costs,Scholar,PIN050715,3348,
FCDO,CSC,16/12/2020,Scholar Stipend,Award costs,Scholar,PIN050716,3348,
FCDO,CSC,16/12/2020,Scholar Stipend,Award costs,Scholar,PIN050717,3348,
FCDO,CSC,16/12/2020,Scholar Stipend,Award costs,Scholar,PIN050718,3348,
FCDO,CSC,16/12/2020,Scholar Stipend,Award costs,Scholar,PIN050719,3348,
FCDO,CSC,16/12/2020,Scholar Stipend,Award costs,Scholar,PIN050720,3348,
FCDO,CSC,16/12/2020,Scholar Stipend,Award costs,Scholar,PIN050721,3348,
FCDO,CSC,16/12/2020,Scholar Stipend,Award costs,Scholar,PIN050722,2886.84,
FCDO,CSC,16/12/2020,Scholar Stipend,Award costs,Scholar,PIN050723,3348,
FCDO,CSC,16/12/2020,Scholar Stipend,Award costs,Scholar,PIN050724,3348,
FCDO,CSC,16/12/2020,Scholar Stipend,Award costs,Scholar,PIN050725,3348,
FCDO,CSC,16/12/2020,Scholar Stipend,Award costs,Scholar,PIN050726,3348,
FCDO,CSC,16/12/2020,Scholar Stipend,Award costs,Scholar,PIN050727,3348,
FCDO,CSC,16/12/2020,Scholar Stipend,Award costs,Scholar,PIN050729,1500.99,
FCDO,CSC,16/12/2020,Scholar Stipend,Award costs,Scholar,PIN050730,1674,
FCDO,CSC,16/12/2020,Scholar Stipend,Award costs,Scholar,PIN050731,3348,
FCDO,CSC,16/12/2020,Scholar Stipend,Award costs,Scholar,PIN050732,3348,
FCDO,CSC,16/12/2020,Scholar Stipend,Award costs,Scholar,PIN050733,1116,
FCDO,CSC,16/12/2020,Scholar Stipend,Award costs,Scholar,PIN050734,1116,
FCDO,CSC,16/12/2020,Scholar Stipend,Award costs,Scholar,PIN050735,3348,
FCDO,CSC,16/12/2020,Scholar Stipend,Award costs,Scholar,PIN050736,3348,
FCDO,CSC,16/12/2020,Scholar Stipend,Award costs,Scholar,PIN050737,3348,
FCDO,CSC,16/12/2020,Scholar Stipend,Award costs,Scholar,PIN050738,3348,
FCDO,CSC,16/12/2020,Scholar Stipend,Award costs,Scholar,PIN050739,2232,
FCDO,CSC,16/12/2020,Scholar Stipend,Award costs,Scholar,PIN050740,3348,
FCDO,CSC,16/12/2020,Scholar Stipend,Award costs,Scholar,PIN050741,3348,
FCDO,CSC,16/12/2020,Scholar Stipend,Award costs,Scholar,PIN050742,1443.42,
FCDO,CSC,16/12/2020,Scholar Stipend,Award costs,Scholar,PIN050743,3348,
FCDO,CSC,16/12/2020,Scholar Stipend,Award costs,Scholar,PIN050744,3348,
FCDO,CSC,16/12/2020,Scholar Stipend,Award costs,Scholar,PIN050745,3348,
FCDO,CSC,16/12/2020,Scholar Stipend,Award costs,Scholar,PIN050746,3348,
FCDO,CSC,16/12/2020,Scholar Stipend,Award costs,Scholar,PIN050747,3348,
FCDO,CSC,16/12/2020,Scholar Stipend,Award costs,Scholar,PIN050748,4107,
FCDO,CSC,16/12/2020,Scholar Stipend,Award costs,Scholar,PIN050749,4107,
FCDO,CSC,16/12/2020,Scholar Stipend,Award costs,Scholar,PIN050750,1116,
FCDO,CSC,16/12/2020,Scholar Stipend,Award costs,Scholar,PIN050751,3348,
FCDO,CSC,16/12/2020,Scholar Stipend,Award costs,Scholar,PIN050752,2738,
FCDO,CSC,16/12/2020,Scholar Stipend,Award costs,Scholar,PIN050753,3348,
FCDO,CSC,16/12/2020,Scholar Stipend,Award costs,Scholar,PIN050754,1116,
FCDO,CSC,16/12/2020,Scholar Stipend,Award costs,Scholar,PIN050755,1674,
FCDO,CSC,16/12/2020,Scholar Stipend,Award costs,Scholar,PIN050756,3348,
FCDO,CSC,16/12/2020,Scholar Stipend,Award costs,Scholar,PIN050757,1674,
FCDO,CSC,16/12/2020,Scholar Stipend,Award costs,Scholar,PIN050758,1702.64,
FCDO,CSC,16/12/2020,Scholar Stipend,Award costs,Scholar,PIN050759,1674,
FCDO,CSC,16/12/2020,Scholar Stipend,Award costs,Scholar,PIN050760,1443.42,
FCDO,CSC,16/12/2020,Scholar Stipend,Award costs,Scholar,PIN050761,3348,
FCDO,CSC,16/12/2020,Scholar Stipend,Award costs,Scholar,PIN050762,1443.42,
FCDO,CSC,16/12/2020,Scholar Stipend,Award costs,Scholar,PIN050763,2311.03,
FCDO,CSC,16/12/2020,Scholar Stipend,Award costs,Scholar,PIN050764,3348,
FCDO,CSC,16/12/2020,Scholar Stipend,Award costs,Scholar,PIN050765,3348,
FCDO,CSC,16/12/2020,Scholar Stipend,Award costs,Scholar,PIN050766,3348,
FCDO,CSC,16/12/2020,Scholar Stipend,Award costs,Scholar,PIN050767,4107,
FCDO,CSC,16/12/2020,Scholar Stipend,Award costs,Scholar,PIN050768,4107,
FCDO,CSC,16/12/2020,Scholar Stipend,Award costs,Scholar,PIN050769,1369,
FCDO,CSC,16/12/2020,Scholar Stipend,Award costs,Scholar,PIN050770,4107,
FCDO,CSC,16/12/2020,Scholar Stipend,Award costs,Scholar,PIN050771,4107,
FCDO,CSC,16/12/2020,Scholar Stipend,Award costs,Scholar,PIN050772,4107,
FCDO,CSC,16/12/2020,Scholar Stipend,Award costs,Scholar,PIN050773,4107,
FCDO,CSC,16/12/2020,Scholar Stipend,Award costs,Scholar,PIN050774,4107,
FCDO,CSC,16/12/2020,Scholar Stipend,Award costs,Scholar,PIN050775,3348,
FCDO,CSC,16/12/2020,Scholar Stipend,Award costs,Scholar,PIN050776,3348,
FCDO,CSC,16/12/2020,Scholar Stipend,Award costs,Scholar,PIN050777,3348,
FCDO,CSC,16/12/2020,Scholar Stipend,Award costs,Scholar,PIN050778,1908.73,
FCDO,CSC,16/12/2020,Scholar Stipend,Award costs,Scholar,PIN050779,3348,
FCDO,CSC,16/12/2020,Scholar Stipend,Award costs,Scholar,PIN050780,2232,
FCDO,CSC,16/12/2020,Scholar Stipend,Award costs,Scholar,PIN050781,3348,
FCDO,CSC,16/12/2020,Scholar Stipend,Award costs,Scholar,PIN050782,3348,
FCDO,CSC,16/12/2020,Scholar Stipend,Award costs,Scholar,PIN050783,3348,
FCDO,CSC,16/12/2020,Scholar Stipend,Award costs,Scholar,PIN050784,1443.42,
FCDO,CSC,16/12/2020,Scholar Stipend,Award costs,Scholar,PIN050785,3348,
FCDO,CSC,16/12/2020,Scholar Stipend,Award costs,Scholar,PIN050786,3348,
FCDO,CSC,16/12/2020,Scholar Stipend,Award costs,Scholar,PIN050787,1443.42,
FCDO,CSC,16/12/2020,Scholar Stipend,Award costs,Scholar,PIN050788,3348,
FCDO,CSC,16/12/2020,Scholar Stipend,Award costs,Scholar,PIN050789,3348,
FCDO,CSC,16/12/2020,Scholar Stipend,Award costs,Scholar,PIN050790,3348,
FCDO,CSC,16/12/2020,Scholar Stipend,Award costs,Scholar,PIN050791,3348,
FCDO,CSC,16/12/2020,Scholar Stipend,Award costs,Scholar,PIN050792,3348,
FCDO,CSC,16/12/2020,Scholar Stipend,Award costs,Scholar,PIN050793,3348,
FCDO,CSC,16/12/2020,Ill Health Stipend,Award costs,Scholar,PIN050794,3348,
FCDO,CSC,16/12/2020,Ill Health Stipend,Award costs,Scholar,PIN050795,2232,
FCDO,CSC,16/12/2020,Advances Repayments,Award costs,Scholar,PIN050796,-1372.64,
FCDO,CSC,16/12/2020,Advances Repayments,Award costs,Scholar,PIN050801,-1263,
FCDO,CSC,16/12/2020,Advances Repayments,Award costs,Scholar,PIN050807,-1110.65,
FCDO,CSC,16/12/2020,Scholar Allowances,Award costs,Scholar,PIN050810,1074,
FCDO,CSC,16/12/2020,Scholar Allowances,Award costs,Scholar,PIN050811,952,
FCDO,CSC,16/12/2020,Scholar Allowances,Award costs,Scholar,PIN050812,1434,
FCDO,CSC,16/12/2020,Scholar Allowances,Award costs,Scholar,PIN050813,1074,
FCDO,CSC,16/12/2020,Scholar Allowances,Award costs,Scholar,PIN050814,645.59,
FCDO,CSC,16/12/2020,Scholar Allowances,Award costs,Scholar,PIN050815,720,
FCDO,CSC,16/12/2020,Scholar Allowances,Award costs,Scholar,PIN050816,720,
FCDO,CSC,16/12/2020,Scholar Allowances,Award costs,Scholar,PIN050818,1428,
FCDO,CSC,16/12/2020,Scholar Allowances,Award costs,Scholar,PIN050819,720,
FCDO,CSC,16/12/2020,Scholar Allowances,Award costs,Scholar,PIN050820,720,
FCDO,CSC,16/12/2020,Scholar Allowances,Award costs,Scholar,PIN050821,720,
FCDO,CSC,16/12/2020,Scholar Allowances,Award costs,Scholar,PIN050822,720,
FCDO,CSC,16/12/2020,Scholar Allowances,Award costs,Scholar,PIN050823,-591.47,
FCDO,CSC,16/12/2020,Scholar Allowances,Award costs,Scholar,PIN050824,1074,
FCDO,CSC,16/12/2020,Scholar Allowances,Award costs,Scholar,PIN050825,720,
FCDO,CSC,16/12/2020,Scholar Allowances,Award costs,Scholar,PIN050826,720,
FCDO,CSC,16/12/2020,Scholar Allowances,Award costs,Scholar,PIN050827,1428,
FCDO,CSC,16/12/2020,Scholar Allowances,Award costs,Scholar,PIN050828,720,
FCDO,CSC,16/12/2020,Scholar Allowances,Award costs,Scholar,PIN050829,716,
FCDO,CSC,16/12/2020,Scholar Allowances,Award costs,Scholar,PIN050830,720,
FCDO,CSC,16/12/2020,Scholar Allowances,Award costs,Scholar,PIN050831,720,
FCDO,CSC,16/12/2020,Scholar Allowances,Award costs,Scholar,PIN050832,1074,
FCDO,CSC,16/12/2020,Scholar Allowances,Award costs,Scholar,PIN050833,1074,
FCDO,CSC,16/12/2020,Scholar Allowances,Award costs,Scholar,PIN050834,2274.78,
FCDO,CSC,16/12/2020,Scholar Allowances,Award costs,Scholar,PIN050835,720,
FCDO,CSC,16/12/2020,Scholar Allowances,Award costs,Scholar,PIN050836,720,
FCDO,CSC,16/12/2020,Scholar Allowances,Award costs,Scholar,PIN050837,1434,
FCDO,CSC,16/12/2020,Scholar Allowances,Award costs,Scholar,PIN050838,720,
FCDO,CSC,16/12/2020,Scholar Allowances,Award costs,Scholar,PIN050839,720,
FCDO,CSC,16/12/2020,Scholar Allowances,Award costs,Scholar,PIN050840,1074,
FCDO,CSC,16/12/2020,Scholar Allowances,Award costs,Scholar,PIN050841,720,
FCDO,CSC,16/12/2020,Scholar Allowances,Award costs,Scholar,PIN050842,720,
FCDO,CSC,16/12/2020,Scholar Allowances,Award costs,Scholar,PIN050843,1074,
FCDO,CSC,16/12/2020,Scholar Allowances,Award costs,Scholar,PIN050845,720,
FCDO,CSC,16/12/2020,Scholar Allowances,Award costs,Scholar,PIN050846,1428,
FCDO,CSC,16/12/2020,Scholar Allowances,Award costs,Scholar,PIN050847,716,
FCDO,CSC,16/12/2020,Scholar Allowances,Award costs,Scholar,PIN050848,720,
FCDO,CSC,16/12/2020,Scholar Allowances,Award costs,Scholar,PIN050849,1074,
FCDO,CSC,16/12/2020,Scholar Allowances,Award costs,Scholar,PIN050850,1428,
FCDO,CSC,16/12/2020,Scholar Allowances,Award costs,Scholar,PIN050851,1428,
FCDO,CSC,16/12/2020,Scholar Allowances,Award costs,Scholar,PIN050852,1074,
FCDO,CSC,16/12/2020,Scholar Allowances,Award costs,Scholar,PIN050853,1074,
FCDO,CSC,16/12/2020,Scholar Allowances,Award costs,Scholar,PIN050854,720,
FCDO,CSC,16/12/2020,Scholar Allowances,Award costs,Scholar,PIN050855,1428,
FCDO,CSC,16/12/2020,Scholar Allowances,Award costs,Scholar,PIN050856,1074,
FCDO,CSC,16/12/2020,Scholar Allowances,Award costs,Scholar,PIN050857,1428,
FCDO,CSC,16/12/2020,Scholar Allowances,Award costs,Scholar,PIN050858,1074,
FCDO,CSC,16/12/2020,Scholar Allowances,Award costs,Scholar,PIN050859,1310,
FCDO,CSC,16/12/2020,Scholar Allowances,Award costs,Scholar,PIN050860,1428,
FCDO,CSC,16/12/2020,Scholar Allowances,Award costs,Scholar,PIN050861,1074,
FCDO,CSC,16/12/2020,Scholar Allowances,Award costs,Scholar,PIN050862,1074,
FCDO,CSC,16/12/2020,Scholar Allowances,Award costs,Scholar,PIN050863,720,
FCDO,CSC,16/12/2020,Scholar Allowances,Award costs,Scholar,PIN050864,1434,
FCDO,CSC,16/12/2020,Scholar Allowances,Award costs,Scholar,PIN050865,1428,
FCDO,CSC,16/12/2020,Scholar Allowances,Award costs,Scholar,PIN050866,720,
FCDO,CSC,16/12/2020,Scholar Allowances,Award costs,Scholar,PIN050867,720,
FCDO,CSC,16/12/2020,Scholar Allowances,Award costs,Scholar,PIN050868,1074,
FCDO,CSC,16/12/2020,Scholar Allowances,Award costs,Scholar,PIN050869,952,
FCDO,CSC,16/12/2020,Scholar Allowances,Award costs,Scholar,PIN050870,1428,
FCDO,CSC,16/12/2020,Scholar Allowances,Award costs,Scholar,PIN050871,1428,
FCDO,CSC,16/12/2020,Scholar Allowances,Award costs,Scholar,PIN050872,1074,
FCDO,CSC,16/12/2020,Scholar Allowances,Award costs,Scholar,PIN050873,1074,
FCDO,CSC,16/12/2020,Scholar Allowances,Award costs,Scholar,PIN050874,720,
FCDO,CSC,16/12/2020,Scholar Allowances,Award costs,Scholar,PIN050876,720,
FCDO,CSC,16/12/2020,Scholar Allowances,Award costs,Scholar,PIN050877,720,
FCDO,CSC,16/12/2020,Scholar Allowances,Award costs,Scholar,PIN050878,720,
FCDO,CSC,16/12/2020,Scholar Allowances,Award costs,Scholar,PIN050879,645.59,
FCDO,CSC,16/12/2020,Scholar Allowances,Award costs,Scholar,PIN050880,720,
FCDO,CSC,16/12/2020,Scholar Allowances,Award costs,Scholar,PIN050882,720,
FCDO,CSC,16/12/2020,Scholar Allowances,Award costs,Scholar,PIN050883,720,
FCDO,CSC,16/12/2020,Scholar Allowances,Award costs,Scholar,PIN050884,720,
FCDO,CSC,16/12/2020,Scholar Allowances,Award costs,Scholar,PIN050885,720,
FCDO,CSC,16/12/2020,Scholar Allowances,Award costs,Scholar,PIN050886,720,
FCDO,CSC,16/12/2020,Scholar Allowances,Award costs,Scholar,PIN050887,720,
FCDO,CSC,16/12/2020,Scholar Allowances,Award costs,Scholar,PIN050889,720,
FCDO,CSC,16/12/2020,Scholar Allowances,Award costs,Scholar,PIN050890,720,
FCDO,CSC,16/12/2020,Scholar Allowances,Award costs,Scholar,PIN050891,720,
FCDO,CSC,16/12/2020,Scholar Allowances,Award costs,Scholar,PIN050892,720,
FCDO,CSC,16/12/2020,Scholar Allowances,Award costs,Scholar,PIN050894,720,
FCDO,CSC,16/12/2020,Scholar Allowances,Award costs,Scholar,PIN050895,720,
FCDO,CSC,16/12/2020,Scholar Allowances,Award costs,Scholar,PIN050896,720,
FCDO,CSC,16/12/2020,Scholar Allowances,Award costs,Scholar,PIN050897,720,
FCDO,CSC,16/12/2020,Scholar Allowances,Award costs,Scholar,PIN050898,720,
FCDO,CSC,16/12/2020,Scholar Allowances,Award costs,Scholar,PIN050899,720,
FCDO,CSC,16/12/2020,Scholar Allowances,Award costs,Scholar,PIN050900,720,
FCDO,CSC,16/12/2020,Scholar Allowances,Award costs,Scholar,PIN050901,720,
FCDO,CSC,16/12/2020,Scholar Allowances,Award costs,Scholar,PIN050902,720,
FCDO,CSC,16/12/2020,Scholar Allowances,Award costs,Scholar,PIN050903,720,
FCDO,CSC,16/12/2020,Scholar Allowances,Award costs,Scholar,PIN050904,720,
FCDO,CSC,16/12/2020,Scholar Allowances,Award costs,Scholar,PIN050905,720,
FCDO,CSC,16/12/2020,Scholar Allowances,Award costs,Scholar,PIN050906,720,
FCDO,CSC,16/12/2020,Scholar Allowances,Award costs,Scholar,PIN050908,720,
FCDO,CSC,16/12/2020,Scholar Allowances,Award costs,Scholar,PIN050909,720,
FCDO,CSC,16/12/2020,Scholar Allowances,Award costs,Scholar,PIN050910,720,
FCDO,CSC,16/12/2020,Scholar Allowances,Award costs,Scholar,PIN050911,720,
FCDO,CSC,16/12/2020,Scholar Allowances,Award costs,Scholar,PIN050912,720,
FCDO,CSC,16/12/2020,Scholar Allowances,Award costs,Scholar,PIN050913,720,
FCDO,CSC,16/12/2020,Scholar Allowances,Award costs,Scholar,PIN050914,720,
FCDO,CSC,16/12/2020,Scholar Allowances,Award costs,Scholar,PIN050915,720,
FCDO,CSC,16/12/2020,Scholar Allowances,Award costs,Scholar,PIN050916,720,
FCDO,CSC,16/12/2020,Scholar Allowances,Award costs,Scholar,PIN050917,720,
FCDO,CSC,16/12/2020,Scholar Allowances,Award costs,Scholar,PIN050918,1030.96,
FCDO,CSC,16/12/2020,Scholar Allowances,Award costs,Scholar,PIN050919,720,
FCDO,CSC,16/12/2020,Scholar Allowances,Award costs,Scholar,PIN050920,720,
FCDO,CSC,16/12/2020,Scholar Allowances,Award costs,Scholar,PIN050921,720,
FCDO,CSC,16/12/2020,Scholar Allowances,Award costs,Scholar,PIN050922,720,
FCDO,CSC,16/12/2020,Scholar Allowances,Award costs,Scholar,PIN050923,720,
FCDO,CSC,16/12/2020,Scholar Allowances,Award costs,Scholar,PIN050924,720,
FCDO,CSC,16/12/2020,Scholar Allowances,Award costs,Scholar,PIN050925,720,
FCDO,CSC,16/12/2020,Scholar Allowances,Award costs,Scholar,PIN050926,720,
FCDO,CSC,16/12/2020,Scholar Allowances,Award costs,Scholar,PIN050927,720,
FCDO,CSC,16/12/2020,Scholar Allowances,Award costs,Scholar,PIN050928,720,
FCDO,CSC,16/12/2020,Scholar Allowances,Award costs,Scholar,PIN050929,720,
FCDO,CSC,16/12/2020,Scholar Allowances,Award costs,Scholar,PIN050930,720,
FCDO,CSC,16/12/2020,Scholar Allowances,Award costs,Scholar,PIN050932,720,
FCDO,CSC,16/12/2020,Scholar Allowances,Award costs,Scholar,PIN050933,720,
FCDO,CSC,16/12/2020,Scholar Allowances,Award costs,Scholar,PIN050934,720,
FCDO,CSC,16/12/2020,Scholar Allowances,Award costs,Scholar,PIN050935,720,
FCDO,CSC,16/12/2020,Scholar Allowances,Award costs,Scholar,PIN050936,720,
FCDO,CSC,16/12/2020,Scholar Allowances,Award costs,Scholar,PIN050937,720,
FCDO,CSC,16/12/2020,Scholar Stipend,Award costs,Scholar,PIN051023,780.86,
FCDO,CSC,16/12/2020,Scholar Stipend,Award costs,Scholar,PIN051026,916.63,
FCDO,CSC,16/12/2020,Disability Allowance,Programme Costs,Scholar,PIN051027,1980,
FCDO,CSC,16/12/2020,Disability Allowance,Programme Costs,Scholar,PIN051028,1450,
FCDO,CSC,18/12/2020,Scholar Allowances,Award costs,University of Strathclyde,PIN051032,1150,
FCDO,CSC,18/12/2020,Scholar Allowances,Award costs,University of Strathclyde,PIN051032,1200,
FCDO,CSC,18/12/2020,Tuition Fee,Award costs,The University of Edinburgh,PIN051033,90000,
FCDO,CSC,18/12/2020,Award Support Costs,Award costs,Lond Sch Hygiene & Tropical Me,PIN051034,3000,
FCDO,CSC,18/12/2020,Award Support Costs,Award costs,Lond Sch Hygiene & Tropical Me,PIN051034,4500,
FCDO,CSC,18/12/2020,Tuition Fee,Award costs,The Cambridge Commonwealth Trust,PIN051035,157500,
FCDO,CSC,18/12/2020,Tuition Fee,Award costs,Brunel University,PIN051036,19855,
FCDO,CSC,18/12/2020,Award Support Costs,Award costs,The University of Leeds,PIN051037,8500,
FCDO,CSC,18/12/2020,Tuition Fee,Award costs,The University of Leeds,PIN051038,14800,
FCDO,CSC,18/12/2020,Tuition Fee,Award costs,The University of Leeds,PIN051039,14800,
FCDO,CSC,18/12/2020,Tuition Fee,Award costs,The University of Leeds,PIN051040,18000,
FCDO,CSC,18/12/2020,Tuition Fee,Award costs,The University of Leeds,PIN051041,45000,
FCDO,CSC,18/12/2020,Scholar Travel,Award costs,The University of Leeds,PIN051042,1756.95,
FCDO,CSC,18/12/2020,Tuition Fee,Award costs,University of Manchester,PIN051044,14800,
FCDO,CSC,18/12/2020,Tuition Fee,Award costs,The University of Leeds,PIN051045,18000,
FCDO,CSC,18/12/2020,Tuition Fee,Award costs,The University of Leeds,PIN051046,17200,
FCDO,CSC,18/12/2020,Scholar Allowances,Award costs,University of Southampton,PIN051047,300,
FCDO,CSC,18/12/2020,Scholar Travel,Award costs,University of Southampton,PIN051047,22.5,
FCDO,CSC,18/12/2020,Scholar Travel,Award costs,University of Southampton,PIN051047,1188.3,
FCDO,CSC,18/12/2020,Tuition Fee,Award costs,University of Manchester,PIN051048,18000,
FCDO,CSC,18/12/2020,Tuition Fee,Award costs,University of Manchester,PIN051049,17600,
FCDO,CSC,18/12/2020,Tuition Fee,Award costs,University of Manchester,PIN051050,17200,
FCDO,CSC,18/12/2020,Tuition Fee,Award costs,University of Manchester,PIN051051,15200,
FCDO,CSC,18/12/2020,Tuition Fee,Award costs,University of Manchester,PIN051052,18000,
FCDO,CSC,18/12/2020,Tuition Fee,Award costs,University of Manchester,PIN051053,17200,
FCDO,CSC,18/12/2020,Tuition Fee,Award costs,University of Manchester,PIN051054,15200,
FCDO,CSC,18/12/2020,Tuition Fee,Award costs,University of Manchester,PIN051055,14800,
FCDO,CSC,18/12/2020,Tuition Fee,Award costs,University of Manchester,PIN051056,17600,
FCDO,CSC,18/12/2020,Award Support Costs,Award costs,University of Southampton,PIN051057,1000,
FCDO,CSC,18/12/2020,Tuition Fee,Award costs,Brunel University,PIN051058,19855,
FCDO,CSC,18/12/2020,Tuition Fee,Award costs,Sch Oriental & African Studies,PIN051059,14948,
FCDO,CSC,18/12/2020,Tuition Fee,Award costs,Sch Oriental & African Studies,PIN051060,15092,
FCDO,CSC,18/12/2020,Tuition Fee,Award costs,Sch Oriental & African Studies,PIN051061,15092,
FCDO,CSC,18/12/2020,Visa Costs,Award costs,Cranfield University,PIN051062,95,
FCDO,CSC,18/12/2020,Scholar Allowances,Award costs,Cranfield University,PIN051062,225,
FCDO,CSC,18/12/2020,Scholar Allowances,Award costs,Cranfield University,PIN051062,200,
FCDO,CSC,18/12/2020,Visa Costs,Award costs,Cranfield University,PIN051063,79,
FCDO,CSC,18/12/2020,Scholar Allowances,Award costs,Cranfield University,PIN051063,225,
FCDO,CSC,18/12/2020,Scholar Allowances,Award costs,Cranfield University,PIN051063,200,
FCDO,CSC,18/12/2020,Tuition Fee,Award costs,City University,PIN051066,14570,
FCDO,CSC,18/12/2020,Award Support Costs,Award costs,University of Sheffield,PIN051067,12000,
FCDO,CSC,18/12/2020,Tuition Fee,Award costs,University of Sheffield,PIN051067,17160,
FCDO,CSC,18/12/2020,Scholar Allowances,Award costs,Keele University,PIN051068,450,
FCDO,CSC,18/12/2020,Scholar Allowances,Award costs,Keele University,PIN051068,400,
FCDO,CSC,18/12/2020,Scholar Allowances,Award costs,Keele University,PIN051068,340,
FCDO,CSC,18/12/2020,Scholar Travel,Award costs,Keele University,PIN051068,1301.65,
FCDO,CSC,18/12/2020,Tuition Fee,Award costs,Royal Holloway & Bedford New College,PIN051069,16800,
FCDO,CSC,18/12/2020,Tuition Fee,Award costs,University of Dundee,PIN051070,3030,
FCDO,CSC,18/12/2020,Tuition Fee,Award costs,University of Dundee,PIN051071,3030,
FCDO,CSC,18/12/2020,Tuition Fee,Award costs,University of Dundee,PIN051072,3030,
FCDO,CSC,18/12/2020,Tuition Fee,Award costs,University of Dundee,PIN051073,3030,
FCDO,CSC,18/12/2020,Tuition Fee,Award costs,University of Dundee,PIN051074,3030,
FCDO,CSC,18/12/2020,Tuition Fee,Award costs,University of Dundee,PIN051075,3030,
FCDO,CSC,18/12/2020,Tuition Fee,Award costs,University of Dundee,PIN051076,3030,
FCDO,CSC,18/12/2020,Tuition Fee,Award costs,University of Dundee,PIN051077,6060,
FCDO,CSC,18/12/2020,Tuition Fee,Award costs,University of Dundee,PIN051078,3030,
FCDO,CSC,18/12/2020,Tuition Fee,Award costs,University of Dundee,PIN051079,3030,
FCDO,CSC,18/12/2020,Tuition Fee,Award costs,University of Dundee,PIN051080,3030,
FCDO,CSC,18/12/2020,Tuition Fee,Award costs,University of Dundee,PIN051081,6050,
FCDO,CSC,18/12/2020,Tuition Fee,Award costs,University of Dundee,PIN051082,6050,
FCDO,CSC,18/12/2020,Tuition Fee,Award costs,University of Dundee,PIN051083,6050,
FCDO,CSC,18/12/2020,Tuition Fee,Award costs,University of Stirling,PIN051084,4767,
FCDO,CSC,18/12/2020,Tuition Fee,Award costs,University of Stirling,PIN051085,4550,
FCDO,CSC,18/12/2020,Tuition Fee,Award costs,University of Stirling,PIN051086,4550,
FCDO,CSC,18/12/2020,Tuition Fee,Award costs,The University of York,PIN051087,4870,
FCDO,CSC,18/12/2020,Tuition Fee,Award costs,The University of York,PIN051088,4870,
FCDO,CSC,18/12/2020,Tuition Fee,Award costs,The University of York,PIN051089,4870,
FCDO,CSC,18/12/2020,Tuition Fee,Award costs,The University of York,PIN051090,4870,
FCDO,CSC,18/12/2020,Tuition Fee,Award costs,The University of York,PIN051091,4870,
FCDO,CSC,18/12/2020,Tuition Fee,Award costs,The University of York,PIN051092,4870,
FCDO,CSC,18/12/2020,Tuition Fee,Award costs,The University of York,PIN051093,4870,
FCDO,CSC,18/12/2020,Tuition Fee,Award costs,The University of York,PIN051094,4870,
FCDO,CSC,18/12/2020,Tuition Fee,Award costs,The University of York,PIN051095,4870,
FCDO,CSC,18/12/2020,Tuition Fee,Award costs,The University of York,PIN051096,4870,
FCDO,CSC,18/12/2020,Tuition Fee,Award costs,Bournemouth University,PIN051097,11600,
FCDO,CSC,18/12/2020,Tuition Fee,Award costs,University of Southampton,PIN051098,23392,
FCDO,CSC,18/12/2020,Tuition Fee,Award costs,University of Southampton,PIN051099,58480,
FCDO,CSC,18/12/2020,Tuition Fee,Award costs,University of Southampton,PIN051100,2140,
FCDO,CSC,18/12/2020,Tuition Fee,Award costs,University of Southampton,PIN051101,7524.8,
FCDO,CSC,18/12/2020,Tuition Fee,Award costs,The University of Salford,PIN051102,3690,
FCDO,CSC,18/12/2020,Tuition Fee,Award costs,The University of Salford,PIN051103,3690,
FCDO,CSC,18/12/2020,Tuition Fee,Award costs,The University of Salford,PIN051104,3690,
FCDO,CSC,18/12/2020,Tuition Fee,Award costs,The University of Salford,PIN051105,3690,
FCDO,CSC,18/12/2020,Tuition Fee,Award costs,The University of Salford,PIN051106,3690,
FCDO,CSC,18/12/2020,Tuition Fee,Award costs,The University of Salford,PIN051107,3690,
FCDO,CSC,18/12/2020,Tuition Fee,Award costs,Kings College London,PIN051108,18000,
FCDO,CSC,18/12/2020,Tuition Fee,Award costs,Kings College London,PIN051109,16656,
FCDO,CSC,18/12/2020,Tuition Fee,Award costs,Kings College London,PIN051110,18000,
FCDO,CSC,18/12/2020,Tuition Fee,Award costs,Kings College London,PIN051111,22500,
FCDO,CSC,18/12/2020,Award Support Costs,Award costs,Kings College London,PIN051112,5000,
FCDO,CSC,18/12/2020,Tuition Fee,Award costs,Kings College London,PIN051113,18000,
FCDO,CSC,18/12/2020,Scholar Allowances,Award costs,Lond Sch Hygiene & Tropical Me,PIN051114,1575,
FCDO,CSC,18/12/2020,Scholar Allowances,Award costs,Lond Sch Hygiene & Tropical Me,PIN051114,1400,
FCDO,CSC,18/12/2020,Tuition Fee,Award costs,Lond Sch Hygiene & Tropical Me,PIN051114,157500,
FCDO,CSC,18/12/2020,Visa Costs,Award costs,University of Southampton,PIN051115,17,
FCDO,CSC,18/12/2020,Scholar Allowances,Award costs,University of Southampton,PIN051115,200,
FCDO,CSC,18/12/2020,Scholar Allowances,Award costs,University of Southampton,PIN051115,225,
FCDO,CSC,18/12/2020,Scholar Travel,Award costs,University of Southampton,PIN051115,396.4,
FCDO,CSC,18/12/2020,Award Support Costs,Award costs,University of Bradford,PIN051116,5000,
FCDO,CSC,18/12/2020,Tuition Fee,Award costs,University of Bradford,PIN051116,14784,
FCDO,CSC,18/12/2020,Tuition Fee,Award costs,University of Bradford,PIN051117,12832,
FCDO,CSC,18/12/2020,Tuition Fee,Award costs,University of Bradford,PIN051118,13472,
FCDO,CSC,18/12/2020,Tuition Fee,Award costs,University of Leicester,PIN051119,20825,
FCDO,CSC,18/12/2020,Tuition Fee,Award costs,The University of Edinburgh,PIN051120,5170,
FCDO,CSC,18/12/2020,Tuition Fee,Award costs,The University of Edinburgh,PIN051121,2745,
FCDO,CSC,18/12/2020,Tuition Fee,Award costs,The University of Edinburgh,PIN051122,5470,
FCDO,CSC,18/12/2020,Scholar Allowances,Award costs,Sheffield Hallam Univ,PIN051123,200,
FCDO,CSC,18/12/2020,Scholar Allowances,Award costs,Sheffield Hallam Univ,PIN051123,600,
FCDO,CSC,18/12/2020,Scholar Allowances,Award costs,Sheffield Hallam Univ,PIN051123,675,
FCDO,CSC,18/12/2020,Scholar Travel,Award costs,Sheffield Hallam Univ,PIN051123,577.06,
FCDO,CSC,18/12/2020,Tuition Fee,Award costs,Swansea University,PIN051124,12050,
FCDO,CSC,18/12/2020,Scholar Travel,Award costs,Sheffield Hallam Univ,PIN051125,22.6,
FCDO,CSC,18/12/2020,Visa Costs,Award costs,Sheffield Hallam Univ,PIN051125,92.53,
FCDO,CSC,18/12/2020,Tuition Fee,Award costs,Sheffield Hallam Univ,PIN051125,13905,
FCDO,CSC,18/12/2020,Scholar Travel,Award costs,Sheffield Hallam Univ,PIN051125,803.25,
FCDO,CSC,18/12/2020,Tuition Fee,Award costs,Swansea University,PIN051126,15080,
FCDO,CSC,18/12/2020,Scholar Allowances,Award costs,University of Leicester,PIN051127,522.23,
FCDO,CSC,18/12/2020,Scholar Travel,Award costs,University of Leicester,PIN051127,200,
FCDO,CSC,18/12/2020,Tuition Fee,Award costs,University of Durham,PIN051128,16000,
FCDO,CSC,18/12/2020,Tuition Fee,Award costs,University of Durham,PIN051128,18000,
FCDO,CSC,18/12/2020,Tuition Fee,Award costs,University of Durham,PIN051128,15400,
FCDO,CSC,18/12/2020,Tuition Fee,Award costs,University of Durham,PIN051129,171000,
FCDO,CSC,18/12/2020,Tuition Fee,Award costs,The University of Warwick,PIN051130,18000,
FCDO,CSC,18/12/2020,Tuition Fee,Award costs,The University of Warwick,PIN051131,18000,
FCDO,CSC,18/12/2020,Tuition Fee,Award costs,The University of Warwick,PIN051132,22500,
FCDO,CSC,18/12/2020,Tuition Fee,Award costs,The University of Warwick,PIN051133,21280,
FCDO,CSC,18/12/2020,Tuition Fee,Award costs,The University of Warwick,PIN051134,7400,
FCDO,CSC,18/12/2020,Tuition Fee,Award costs,The University of Warwick,PIN051135,22500,
FCDO,CSC,18/12/2020,Tuition Fee,Award costs,The University of Warwick,PIN051136,18000,
FCDO,CSC,18/12/2020,Tuition Fee,Award costs,The University of Warwick,PIN051137,21280,
FCDO,CSC,18/12/2020,Tuition Fee,Award costs,The University of Warwick,PIN051138,18380,
FCDO,CSC,18/12/2020,Scholar Allowances,Programme Costs,University of Exeter,PIN051139,200,
FCDO,CSC,18/12/2020,Scholar Allowances,Programme Costs,University of Exeter,PIN051139,225,
FCDO,CSC,18/12/2020,Scholar Allowances,Award costs,University of Exeter,PIN051139,900,
FCDO,CSC,18/12/2020,Scholar Allowances,Award costs,University of Exeter,PIN051139,400,
FCDO,CSC,18/12/2020,Immigration Health Surcharge,Award costs,Scholar,PIN051140,705,
FCDO,CSC,18/12/2020,Visa Costs,Award costs,Scholar,PIN051140,494.2,
FCDO,CSC,18/12/2020,Tuition Fee,Award costs,Bournemouth University,PIN051141,11600,
FCDO,CSC,18/12/2020,Tuition Fee,Award costs,The University of Edinburgh,PIN051142,4335,
FCDO,CSC,18/12/2020,Tuition Fee,Award costs,Sheffield Hallam Univ,PIN051143,10000,
FCDO,CSC,18/12/2020,Tuition Fee,Award costs,The University of Edinburgh,PIN051144,5470,
FCDO,CSC,18/12/2020,Tuition Fee,Award costs,Loughborough University,PIN051145,17386.4,
FCDO,CSC,18/12/2020,Tuition Fee,Award costs,The University of Leeds,PIN051147,18000,
FCDO,CSC,18/12/2020,Tuition Fee,Award costs,The University of Leeds,PIN051148,15600,
FCDO,CSC,18/12/2020,Tuition Fee,Award costs,The University of Leeds,PIN051149,18000,
FCDO,CSC,18/12/2020,Scholar Allowances,Award costs,Kings College London,PIN051150,200,
FCDO,CSC,18/12/2020,Scholar Allowances,Award costs,Kings College London,PIN051150,225,
FCDO,CSC,18/12/2020,Scholar Allowances,Award costs,Kings College London,PIN051150,200,
FCDO,CSC,18/12/2020,Scholar Travel,Award costs,Kings College London,PIN051150,528.02,
FCDO,CSC,18/12/2020,Tuition Fee,Award costs,Queen Margaret University,PIN051151,14500,
FCDO,CSC,18/12/2020,Immigration Health Surcharge,Award costs,Scholar,PIN051153,235,
FCDO,CSC,18/12/2020,Visa Costs,Award costs,Scholar,PIN051153,494.2,
FCDO,CSC,18/12/2020,Scholar Allowances,Award costs,Scholar,PIN051154,540.94,
FCDO,CSC,18/12/2020,Tuition Fee,Award costs,University of East Anglia,PIN051156,15280,
FCDO,CSC,18/12/2020,Tuition Fee,Award costs,Robert Gordon University,PIN051157,10072,
FCDO,CSC,18/12/2020,Tuition Fee,Award costs,Liverpool School of Tropical Medicine,PIN051158,15000,
FCDO,CSC,18/12/2020,Tuition Fee,Award costs,Liverpool School of Tropical Medicine,PIN051158,98350,
FCDO,CSC,18/12/2020,Tuition Fee,Award costs,Staffordshire University,PIN051159,1057.5,
FCDO,CSC,18/12/2020,Tuition Fee,Award costs,Staffordshire University,PIN051160,1057.5,
FCDO,CSC,18/12/2020,Tuition Fee,Award costs,University of Newcastle upon Tyne,PIN051161,18000,
FCDO,CSC,18/12/2020,Scholar Engagement,Programme Costs,Scholar,PIN051162,1000,
FCDO,CSC,18/12/2020,Alumni network welcome,Programme Costs,TFW Printers,PIN051165,1038,
FCDO,CSC,18/12/2020,Scholar Stipend,Award costs,Scholar,PIN051168,1369,
FCDO,CSC,18/12/2020,Scholar Stipend,Award costs,Scholar,PIN051169,2232,
FCDO,CSC,18/12/2020,Scholar Allowances,Award costs,Scholar,PIN051170,375,
FCDO,CSC,18/12/2020,Scholar Stipend,Award costs,Scholar,PIN051170,380.18,
FCDO,CSC,18/12/2020,Scholar Stipend,Award costs,Scholar,PIN051171,1099.95,
FCDO,CSC,21/12/2020,Scholar Stipend,Award costs,Scholar,PIN051172,2232,
FCDO,CSC,21/12/2020,Scholar Stipend,Award costs,Scholar,PIN051173,2232,
FCDO,CSC,21/12/2020,Scholar Stipend,Award costs,Scholar,PIN051174,2232,
FCDO,CSC,21/12/2020,Scholar Stipend,Award costs,Scholar,PIN051175,2232,
FCDO,CSC,21/12/2020,Scholar Stipend,Award costs,Scholar,PIN051176,2232,
FCDO,CSC,21/12/2020,Scholar Stipend,Award costs,Scholar,PIN051177,2232,
FCDO,CSC,21/12/2020,Scholar Stipend,Award costs,Scholar,PIN051178,2232,
FCDO,CSC,21/12/2020,Scholar Stipend,Award costs,Scholar,PIN051179,2232,
FCDO,CSC,21/12/2020,Scholar Stipend,Award costs,Scholar,PIN051180,2232,
FCDO,CSC,21/12/2020,Scholar Stipend,Award costs,Scholar,PIN051181,2232,
FCDO,CSC,21/12/2020,Scholar Stipend,Award costs,Scholar,PIN051182,2232,
FCDO,CSC,21/12/2020,Scholar Stipend,Award costs,Scholar,PIN051183,2232,
FCDO,CSC,21/12/2020,Scholar Stipend,Award costs,Scholar,PIN051184,2232,
FCDO,CSC,21/12/2020,Scholar Stipend,Award costs,Scholar,PIN051185,2232,
FCDO,CSC,21/12/2020,Scholar Stipend,Award costs,Scholar,PIN051186,2232,
FCDO,CSC,21/12/2020,Scholar Stipend,Award costs,Scholar,PIN051187,2232,
FCDO,CSC,21/12/2020,Scholar Stipend,Award costs,Scholar,PIN051188,2232,
FCDO,CSC,21/12/2020,Scholar Stipend,Award costs,Scholar,PIN051189,2738,
FCDO,CSC,21/12/2020,Scholar Stipend,Award costs,Scholar,PIN051190,2232,
FCDO,CSC,04/12/2020,Bank Charges,Programme Costs,MasterCard Prepaid Management Services Ltd,PIN051192,58.35,
FCDO,CSC,04/12/2020,Scholar Allowances,Award costs,Scholar,PIN051192,431,
FCDO,CSC,04/12/2020,Scholar Stipend,Award costs,Scholar,PIN051192,2578.83,
FCDO,CSC,04/12/2020,Scholar Allowances,Award costs,Scholar,PIN051192,431,
FCDO,CSC,04/12/2020,Scholar Stipend,Award costs,Scholar,PIN051192,2394.43,
FCDO,CSC,11/12/2020,Bank Charges,Programme Costs,MasterCard Prepaid Management Services Ltd,PIN051193,66.7,
FCDO,CSC,11/12/2020,Scholar Allowances,Award costs,Scholar,PIN051193,431,
FCDO,CSC,11/12/2020,Scholar Stipend,Award costs,Scholar,PIN051193,2610.27,
FCDO,CSC,11/12/2020,Scholar Allowances,Award costs,Scholar,PIN051193,431,
FCDO,CSC,11/12/2020,Scholar Stipend,Award costs,Scholar,PIN051193,3197.95,
FCDO,CSC,15/12/2020,Bank Charges,Programme Costs,MasterCard Prepaid Management Services Ltd,PIN051194,25.53,
FCDO,CSC,15/12/2020,Scholar Allowances,Award costs,Scholar,PIN051194,431,
FCDO,CSC,15/12/2020,Scholar Stipend,Award costs,Scholar,PIN051194,2122.33,
FCDO,CSC,17/12/2020,Tuition Fee,Award costs,University of Liverpool,PRF000208,-2018.33,
